Workbook

Sheet Read me
A1: General info
A2: Authors | B2: Fatimata-Fatim DIARRASSOUBA
B3: Jean-Christophe CREBIER
B4: Lucas RIONDET
B5: Yvan AVENAS
A7: Institutions | B7: G2Elab
A8: Location | B8: Grenoble, France
A9: Date | B9: March 28, 2025
A11: Aim of the document | B11: This document aims to provide manufacturing data related to power modules in order to produce a Life Cycle Inventory (LCI).
B12: Therefore guiding users to build a manufacturing inventory that they can use to make Life Cycle Assessment (LCA).
B13: The modelisation of each sub-part or component, found in corresponding tabs, was based on following materials:
B14: 1. Using data collected from experimental disassembly of differents power modules
B15: 2. Using existing dataset on processes for manufacting of the studied object extracted from the detailed work of Chalmer.
B16: 3. Available bill of Material and identified processes in existing database of the Lifecycle of the studied object
A18: Studied object | B18: This work is dedicated to the manufacturing inventory of regular power modules.
B19: This type of power module has top-side screwed electrical interconnects for power terminals and wired or soldered driving signal interconnects.
B20: The bottom side is flat, includes a baseplate and can be connected to a heat sink for air or water cooling.
A39: Usage notes
A40: Input guide | B40: This is an explanation of where users should enter data!
B41: 01-User input: | C41: (Mandatory) | D41: This first tab of the file is where the user enters the geometrical values related to the power module he wishes to study. Values are to be entered respecting the correct units provided in the message box that appears once the button had been click on.
B42: 14-Model deviation calculation: | D42: (Optional) | E42: In this tab the users has to enter the real masses of subparts for the component he is studying if he wishes to calculate the deviation of the model with real values.
A44: Calculation process | B44: This is a brief overview of how the spreadsheet process the inputs! (See figure at the right)
B45: 1.The inputs from the first tab of the file are inserted in corresponding cells.
B46: 2.In addition to the experimental data collected from disassemblies, thoses values helps in deriving parameters values essential to the modelisation of each subpart of the power module
B47: 3.The values of these parameters helps in making mass calculations thanks to the density of corresponding materials
B48: 4.Thoses masses are injected in the manufacturing process dataset of power modules extracted from Chalmers
A50: Output interpretation | B50: This is an explanation of where to find key results and how to use them!
B51: The tabs 2 to 10 presents the manufacturing processes of involved for each subpart of the power module with
B52: corresponding flows and values calculated from user's input, data extracted from littérature and experimental data collection from disassemblies.
B53: Those are the data neccessary as inputs in LCA software. The links to the Ecoinvent's database are available as well in the tabs for each flow.
A55: Navigation guide | B55: This is a table of contents of all the tabs complemented with hyperlinks for easy navigation!
B56: 01-User input
B57: 02-DBC
B58: … 14-Model deviation
A60: Assumptions | B60: This is a list of assumptions made in line with the first version of our work found in this file!
B61: 1-Materials are considere to be the same as described in the work of Chalmers
B62: 2- Energy scaling is done according to the method used by Chalmers
A64: Version history
B65: This is the version of the model
B66: V1: | C66: 2024-12-01

Sheet Catalog of modules
A2: Semitrans 2
A9: Semitrans 3
A16: Dynex

Sheet System overview
A1: System overview
A6: Data sources | D6: How does the model works ?
B68: System overview
B70: +-------------------------------------------------------------+
B71: | Background System |
B72: | (ecoinvent data: raw materials, energy, etc.) |
B73: | |
B74: | +----------------+ +---------------------+ |
B75: | | Raw Material | | Energy Supply (Grid)| |
B76: | | Extraction | | (ecoinvent) | |
B77: | +----------------+ +---------------------+ |
B78: | | | |
B79: | V V |
B80: | (Solid arrows: technosphere flows) |
B81: | |
B82: +-------------------------▼-----------------------------------+
B83: |
B84: V
B85: +-------------------------------------------------------------+
B86: | Foreground System (Your Focus) |
B87: | (detailed modeling: power module production, operation) |
B88: | |
B89: | +-------------+ +--------------+ +--------------+ |
B90: | | Component | --> | Assembly of | --> | Use Phase / | |
B91: | | Manufacture | | Power Module| | Operation | |
B92: | +-------------+ +--------------+ +--------------+ |
B93: | | |
B94: | (Dashed arrows: |
B95: | emissions, etc.) |
B96: +-------------------------▼-----------------------------------+
B97: |
B98: V
B99: +-------------------------------------------------------------+
B100: | Background System (Downstream) |
B101: | (ecoinvent data: waste treatment, recycling, etc.) |
B102: | |
B103: | +------------------+ +-----------------------+ |
B104: | | Waste Disposal | --> | Recycling / Reuse | |
B105: | +------------------+ +-----------------------+ |
B106: | |
B107: +-------------------------------------------------------------+

Sheet 01-User input
A1: GPLCI-PM
A2: Geometric Parametrized Life Cycle Inventory for power modules
A3: To overcome this lack of data regarding the LCI of power modules, the idea proposed in this article is to develop a parametric Life Cycle Inventory (PLCI) of power modules based on data collected from the manufacturer and an experimental inventory of the materials composing the device, completed with a literature review regarding the associated processes and materials involved in the manufacturing stage. The parameters used for the model are basic and easily derived from manufacturer datasheets, enabling the creation of a complete manufacturing LCI for a type of power module. This PLCI has been developed to be independent of the integrated semiconductor technology and adaptable to any semiconductor technology, such as wide band gap devices. The model entry parameters are to be completed by the users while clicking on the "click here" button below. Values are to be entered respecting the correct units provided in the message boxes. The filled-in values are going to be inserted in the table below which lists all of the necessary parameters for modelling of each part of the power module followed by respective parameter's names. From where the data is accessible is provided in the next column. The computed values presented are obtained through experimental values, hypothesis and deductions. The notes explains how calculations were made and specify also the hypothesis.
A6: Legend
B7: Entry parameters automatically filled in once the users click on the button
A9: Parts | B9: Parameters name | C9: Data accessibility | D9: Computed values | E9: Computational notes
A10: Direct Bonded Copper (DBC)
A11: Lenght of ceramic substrate | B11: Ldbc | C11: Opening of module | D11: =D45-2*'12-Additional data'!D12 -> 0.07017 | E11: Baseplate Lenght minus 15mm
A12: Width of ceramic substrate | B12: Wdbc | C12: Opening of module | D12: =D46-2*'12-Additional data'!D11 -> 0.05017 | E12: Baseplate Witdh minus 5mm
A13: Number of DBC | B13: Ndbc | C13: Opening of module | D13: 1 | E13: Considered to always be 1
A14: Thickness of copper foils | B14: Tdbcc | C14: Hypothesis | D14: 0.0003 | E14: Data extracted from Nebo, Sunday E., et al (2024)
A15: Thickness of dielectric material | B15: Tdbcdm | C15: Hypothesis | D15: ='12-Additional data'!G16 -> 0.0005 | E15: Data extracted from Chalmers
A17: Wire bonds
A18: Control terminal wire bonds
A19: Lenght | B19: Lbwds | C19: Disassembly of module | D19: =0.5*D45-'12-Additional data'!D17 -> 0.04476 | E19: Always equal to 0,5 BP lenght -0,0052mm
A20: Radius | B20: Rbwds | C20: Disassembly of module | D20: ='12-Additional data'!D34 -> 0.00018 | E20: Value obtained from experimental disassembly work
A21: Number of wire bonds(control terminals) | B21: Nbwds | C21: Opening of module | D21: =1*D66 -> 4 | E21: 1 or 2 per transistor (2 if Kelvin terminal)
A22: Power die wire bonds
B23: Lbwp | C23: Disassembly of module | D23: =1.25*MIN(D67,D68) -> 0.01391194085 | E23: Equal to 1,25 x the min of L and W per die type
A24: Radius | B24: Rbwp | C24: Disassembly of module | D24: ='12-Additional data'!D34 -> 0.00018 | E24: Value obtained from experimental disassembly work
A25: Number of wire bonds(power die) | B25: Nbwp | C25: Opening of module | D25: =ROUND((MAX(D67,D68)-0.003)/0.001,0) -> 8 | E25: Function of die max(W,L): (Max(W,L)-0,0003)/0,0001; We suppose a distancing of 1mm between each wire
A26: Terminal sensor wire bonds
A27: Lenght | B27: Lbws | C27: Disassembly of module | D27: =0.5*D45-'12-Additional data'!D17 -> 0.04476 | E27: Suposed at the middle of the BP -0,005 (to account for BP edge)
A28: Radius | B28: Rbws | C28: Disassembly of module | D28: ='12-Additional data'!D34 -> 0.00018 | E28: Value obtained from experimental disassembly work
A29: Number of wire bonds(terminal sensors) | B29: Nbws | C29: Opening of module | D29: 0 | E29: 0 or 2 depeending if sensor is included or not
A31: Fasteners (nuts, washers)
A32: Nuts
A33: Number of nuts | B33: Nscrew | C33: Datasheet | D33: =D61 -> 3 | E33: Dependent on number of power terminals
A34: Radius of nuts | B34: Rscrew | C34: Opening of module | D34: ='12-Additional data'!D22/2 -> 0.004965 | E34: Value obtained from experimental disassembly work
A35: Thickness of nuts | B35: Tscrew | C35: Opening of module | D35: ='12-Additional data'!D24 -> 0.00427 | E35: Value obtained from experimental disassembly work
A36: Washers
A37: Number of washers | B37: Nwsh | C37: Datasheet | D37: 4 | E37: Dependent on number of BP holes
A38: Radius of washers | B38: Rwsh | C38: Opening of module | D38: ='12-Additional data'!D31/2 -> 0.005435 | E38: Value obtained from experimental disassembly work
A39: Thickness of washers | B39: Twsh | C39: Opening of module | D39: ='12-Additional data'!D33 -> 0.004 | E39: Value obtained from experimental disassembly work
A41: Encapsulant (Silicone gel)
A42: Filling rate of silicone gel | B42: Frt | C42: Opening of module | D42: ='12-Additional data'!D30 -> 0.3190104323 | E42: Value obtained from experimental disassembly work
A44: Baseplate
A45: Lenght of baseplate | B45: Lbp | C45: Datasheet | D45: 0.1 | E45: To be defined, part of the very initial parameters set
A46: Width of baseplate | B46: Wbp | C46: Datasheet | D46: 0.06 | E46: To be defined, part of the very initial parameters set
A47: Thickness of baseplate | B47: Tbp | C47: Opening of module | D47: 0.0031 | E47: To be defined, part of the very initial parameters set
A48: Diameter of baseplate holes | B48: Dbph | C48: Opening of module | D48: ='12-Additional data'!D10 -> 0.007215 | E48: Value obtained from experimental disassembly work
A49: Number of baseplate holes | B49: Nbph | C49: Opening of module | D49: =D37 -> 4
A51: Terminals
A52: Control terminals
A53: Length of control terminals | B53: Ltd | C53: Opening of module | D53: ='12-Additional data'!D14 -> 0.02818 | E53: Value obtained from experimental disassembly work
A54: Width of control terminals | B54: Wtd | C54: Opening of module | D54: ='12-Additional data'!D15 -> 0.002865 | E54: Value obtained from experimental disassembly work
A55: Thickness of control terminals | B55: Ttd | C55: Opening of module | D55: ='12-Additional data'!D13 -> 0.00053 | E55: Value obtained from experimental disassembly work
A56: Number of control terminals | B56: Ntd | C56: Datasheet | D56: 4 | E56: Value obtained from experimental disassembly work
A57: Power terminals
A58: Length of power terminals | B58: Ltp | C58: Opening of module | D58: =0.013+D85+0.004 -> 0.04675 | E58: default=0,013+Hlid+0,0004 (short feet part to be soldered on DBC); the 0,013 account for the lenght of exterior curved part of the power terminal
A59: Width of power terminals | B59: Wtp | C59: Opening of module | D59: ='12-Additional data'!D28 -> 0.012115 | E59: Value obtained from experimental disassembly work
A60: Thickness of power terminals | B60: Ttp | C60: Opening of module | D60: ='12-Additional data'!D27 -> 0.00128 | E60: Value obtained from experimental disassembly work
A61: Number of power terminals | B61: Ntp | C61: Datasheet | D61: 3 | E61: Value obtained from experimental disassembly work
A62: Diameter of power terminals hole | B62: Dtp | C62: Datasheet | D62: ='12-Additional data'!D25 -> 0.00745 | E62: Value obtained from experimental disassembly work
A64: Dies
A65: Dies of type 1 (Transistors)
A66: Number of transistors | B66: Ndy | C66: Opening of module | D66: 4 | E66: To be defined, part of the very initial parameters set
A67: Lenght of transitors | B67: Ldx | C67: Disassembly of module | D67: =((2*D11*D12*0.95/4.5)/(3*D66))^0.5 -> 0.01112955268
A68: Width of transistors | B68: Wdx | C68: Disassembly of module | D68: =((2*D11*D12*0.95/4.5)/(3*D66))^0.5 -> 0.01112955268
A69: Thickness of transistors | B69: Tdx | C69: Disassembly of module | D69: ='12-Additional data'!D16 -> 0.0004625 | E69: Value obtained from experimental disassembly work
A70: Dies of type 2 (Diodes)
A71: Number of diodes | B71: Ndy | C71: Opening of module | D71: 4 | E71: To be defined, part of the very initial parameters set
A72: Lenght of diodes | B72: Ldy | C72: Disassembly of module | D72: =((D11*D12*0.95/4.5)/(3*D71))^0.5 -> 0.007869782169
A73: Width of diodes | B73: Wdx | C73: Disassembly of module | D73: =((D11*D12*0.95/4.5)/(3*D71))^0.5 -> 0.007869782169
A74: Thickness of diodes | B74: Tdx | C74: Disassembly of module | D74: ='12-Additional data'!D16 -> 0.0004625 | E74: Value obtained from experimental disassembly work
A76: Silicone adhesive
A77: Thickness of silicone adhesive | B77: Tsad | C77: Disassembly of module | D77: ='12-Additional data'!D29 -> 0.000605 | E77: Value obtained from experimental disassembly work
A78: Lenght of silicone adhesive | B78: Lsad | C78: Disassembly of module | D78: =D45 -> 0.1 | E78: deduced from baseplate dimension
A79: Width of silicone adhesive | B79: Wsad | C79: Disassembly of module | D79: 0.06 | E79: deduced from baseplate dimension
A81: Lid
A82: Lenght of lid | B82: Llid | C82: Datasheet | D82: =D45 -> 0.1 | E82: deduced from baseplate dimension
A83: Width of lid | B83: Wlid | C83: Datasheet | D83: 0.06 | E83: deduced from baseplate dimension
A84: Thickness of lid | B84: Tlid | C84: Opening of module | D84: ='12-Additional data'!D21 -> 0.002715 | E84: Value obtained from experimental disassembly work
A85: Height of lid | B85: Hlid | C85: Datasheet | D85: ='12-Additional data'!D19 -> 0.02975 | E85: Value obtained from experimental disassembly work
A86: Thickness of plastic filling in the lid | B86: Tplf | C86: Disassembly of module | D86: 0 | E86: Equal to 0 or to a mesured value
A88: Frame
A89: Length of frame | B89: Lf | C89: Opening of module | D89: =D45-2*'12-Additional data'!D17 -> 0.08952 | E89: Deduced from BP dimension -2x0,5cm
A90: Width of frame | B90: Wf | C90: Opening of module | D90: =D46-2*'12-Additional data'!D35 -> 0.03997 | E90: Deduced from BP dimension - 2x1cm
A91: Thickness of frame | B91: Tf | C91: Opening of module | D91: ='12-Additional data'!D18 -> 0.0031 | E91: Value obtained from experimental disassembly work
A93: Solder (Dies, baseplate)
A94: Thickness of solder | B94: Tsolder | C94: Hypothesis | D94: 0.0001 | E94: Data extracted from Nebo, Sunday E., et al (2024)

Sheet 13-Verification
A1: Verification
A2: Description : | B2: This sheet presents the processes required for the production of the DBCThe obtention process of the DBC starts with the step of production of alumina substrate. Followed by this step is the production of copper foils that'll be bonded to the previous alumina substrate through the process of direct copper bonding. The DBC is then etched through the process of photolithography and the top copper surface is cleaned for the nickel electroplating step.The final product is illustrated by the picture on the right of this textbox. The tables below are adapted from Nordelof et Al. (2019). Each of them represent a step of the production stage of the present component. A description of the flow, its property, quantity, reference source, link to EcoInvent 3 and the uncertainty assessment is given. The colored legend is explained below.
A9: Part | B9: Mass[g]
A10: DBC | B10: 24.4 | E10: To be filled in by user if verification needed
A11: Baseplate | B11: 160.9
A12: Dies | B12: 0.7 | E12: Case of Semitrans 3
A13: Lid | B13: 49 | E13: Substances | F13: Estimated mass [g] | G13: Measured mass [g] | H13: Deviation [%] | I13: Colonne1 | J13: Ponderation
A14: Frame | B14: 4.9 | E14: Copper (Baseplate, terminals,wires) | F14: ='11-Surface and mass calculation'!F10+'11-Surface and mass calculation'!F29+Tableau11[Value]+'11-Surface and mass calculation'!F17 -> 181.8990489 | G14: =B11+B15+B16+B17 -> 181.5 | H14: =ABS(G14-F14)/G14 *100 -> 0.2198616577 | I14: =G14*H14 -> 39.90489087
A15: Power terminals | B15: 17.7 | E15: Doped silicon | F15: ='11-Surface and mass calculation'!I25 -> 0.8008926853 | G15: =B12 -> 0.7 | H15: 14.41324075 | I15: 10.08926853
A16: Auxiliary terminals | B16: 2.5 | E16: Solder | F16: ='11-Surface and mass calculation'!I28 -> 3.155086612 | G16: =B20 -> 2.6 | H16: 21.34948507 | I16: 55.50866119
A17: Wires bonds | B17: 0.4 | E17: Low-alloy carbon steel | F17: ='11-Surface and mass calculation'!I29 -> 8.904938027 | G17: =B19 -> 10.1 | H17: 11.83229676 | I17: 119.5061973
A18: Silicone gel | B18: 24.7 | E18: Plastic | F18: ='11-Surface and mass calculation'!I31 -> 61.3186647 | G18: =B13+B14 -> 53.9 | H18: 13.76375641 | I18: 741.8664702
A19: Screws and washers | B19: 10.1 | E19: Silicone gel | F19: ='11-Surface and mass calculation'!I33 -> 31.15563752 | G19: =B18 -> 24.7 | H19: 26.13618429 | I19: 645.563752
A20: Solder | B20: 2.6 | E20: DBC | F20: ='11-Surface and mass calculation'!I34 -> 23.7220581 | G20: =B10 -> 24.4 | H20: 2.778450411 | I20: 67.79419002
A21: Total (Masse réelle) | B21: =SUM(B10:B20) -> 297.9 | G21: =SUM(G14:G20) -> 297.9 | H21: =AVERAGE(H14:H20) -> 12.92761076 | I21: =SUM(I14:I20) -> 1680.23343 | J21: =I21/G21 -> 5.64025992
A22: Masse estimée par le modèle | B22: =SUM('11-Surface and mass calculation'!I23:I33) -> 294.8948383
A23: Ecart sur la masse totale | B23: =ABS(B21-B22)/B21 -> 0.01008782038

Sheet 12-Additional data
A1: Additional data
A2: Description : | B2: This sheet presents the processes required for the production of the DBCThe obtention process of the DBC starts with the step of production of alumina substrate. Followed by this step is the production of copper foils that'll be bonded to the previous alumina substrate through the process of direct copper bonding. The DBC is then etched through the process of photolithography and the top copper surface is cleaned for the nickel electroplating step.The final product is illustrated by the picture on the right of this textbox. The tables below are adapted from Nordelof et Al. (2019). Each of them represent a step of the production stage of the present component. A description of the flow, its property, quantity, reference source, link to EcoInvent 3 and the uncertainty assessment is given. The colored legend is explained below.
A8: Collected data | F8: Data extracted from Chalmers
A9: Experimental values | B9: Dynex | C9: Semitrans3 | D9: Mean | F9: Chalmer's hypothesis | G9: Value
A10: Baseplate hole diameter | B10: 6.89 | C10: 7.54 | D10: =AVERAGE(B10:C10)/1000 -> 0.007215 | F10: DCB foils, substrate coverage pre-ecthing | G10: 0.95
A11: Baseplate lengthwise edge distance with DBC | B11: 5.87 | C11: 3.96 | D11: 0.004915 | F11: Etched side, coverage after ecthing | G11: 0.85
A12: Baseplate widthwise edge distance with DBC | B12: 17.89 | C12: 11.94 | D12: 0.014915 | F12: Nickel layer thickn., foils and basepl. [m] | G12: 3e-06
A13: Control terminal tickness | B13: 0.55 | C13: 0.51 | D13: 0.00053 | F13: Nickel layer thickness, on terminals [m] | G13: 1.5e-06
A14: Control terminals length | B14: 25.93 | C14: 30.43 | D14: 0.02818 | F14: Gold layer thickness, on terminals [m] | G14: 1.5e-06
A15: Control terminals width | B15: 2.8 | C15: 2.93 | D15: 0.002865 | F15: Zinc layer thickness, on steel parts [m] | G15: 1.5e-05
A16: Dies thickness | B16: 0.535 | C16: 0.39 | D16: 0.0004625 | F16: Alumina substrate thickness [m] | G16: 0.0005
A17: Frame Edge distance from the edge of the baseplate | B17: 4.06 | C17: 6.42 | D17: 0.00524
A18: Frame thickness | B18: 3.25 | C18: 2.95 | D18: 0.0031
A19: Lid height | B19: 33.3 | C19: 26.2 | D19: 0.02975
A20: Lid interior height | B20: =23.4-3.13 -> 20.27 | C20: =20.75-2.3 -> 18.45 | D20: 0.01936
A21: Lid Thickness | B21: 3.13 | C21: 2.3 | D21: 0.002715
A22: Nuts exterior diameter | B22: 8.84 | C22: 11.02 | D22: 0.00993
A23: Nuts interior diameter | B23: 4.09 | C23: 5.04 | D23: 0.004565
A24: Nuts thickness | B24: 3.8 | C24: 4.74 | D24: 0.00427
A25: Power terminals hole diameter | B25: 6.5 | C25: 8.4 | D25: 0.00745
A26: Power terminals length | B26: 40.3 | C26: =23.6+10.3+20 -> 53.9 | D26: 0.0471
A27: Power terminals thickness | B27: 1.65 | C27: 0.91 | D27: 0.00128
A28: Power terminals width | B28: 10.4 | C28: 13.83 | D28: 0.012115
A29: Silicone adhesive thickness | B29: 0.44 | C29: 0.77 | D29: 0.000605
A30: Silicone gel filling rate | B30: =7/B20 -> 0.3453379378 | C30: =5.4/C20 -> 0.2926829268 | D30: =AVERAGE(B30:C30) -> 0.3190104323
A31: Washers exterior diameter | B31: x | C31: 10.87 | D31: =AVERAGE(Tableau1[[#This Row],[Semitrans3]])/1000 -> 0.01087
A32: Washers interior diameter | B32: x | C32: 6.45 | D32: =AVERAGE(Tableau1[[#This Row],[Semitrans3]])/1000 -> 0.00645
A33: Washers thickness | B33: x | C33: 4 | D33: =AVERAGE(Tableau1[[#This Row],[Semitrans3]])/1000 -> 0.004
A34: Wire bonds radius | B34: =0.36/2 -> 0.18 | C34: 0.18 | D34: =AVERAGE(B34:C34)/1000 -> 0.00018
A35: W Frame edge distance from baseplate widthwise | B35: 9.8 | C35: 10.23 | D35: 0.010015

Sheet 11-Surface and mass calculation
A1: Masses and surfaces calculation
A2: Description : | B2: This sheet presents the processes required for the production of the DBCThe obtention process of the DBC starts with the step of production of alumina substrate. Followed by this step is the production of copper foils that'll be bonded to the previous alumina substrate through the process of direct copper bonding. The DBC is then etched through the process of photolithography and the top copper surface is cleaned for the nickel electroplating step.The final product is illustrated by the picture on the right of this textbox. The tables below are adapted from Nordelof et Al. (2019). Each of them represent a step of the production stage of the present component. A description of the flow, its property, quantity, reference source, link to EcoInvent 3 and the uncertainty assessment is given. The colored legend is explained below.
A8: DBC | B8: Values | E8: Baseplate | F8: Values | H8: Density [kg/m3] | I8: Values
A9: DCB substrate, area [m2] | B9: ='01-User input'!D11*'01-User input'!D12*'01-User input'!D13 -> 0.0035204289 | E9: Baseplate area [m2] | F9: ='01-User input'!D45*'01-User input'!D46-PI()*'01-User input'!D49*('01-User input'!D48/2)^2 -> 0.005836460546 | H9: SnAg solder | I9: 7400
A10: Copper in DCB [g] | B10: =1000*(Tableau3[[#This Row],[Value]]+'12-Additional data'!G11)*B9*I13*'01-User input'!D14 -> 17.03324319 | E10: Copper in baseplate [g] | F10: =1000*F9*'01-User input'!D47*I13 -> 162.1135281 | H10: PPS density | I10: 1660
A11: Copper lost in etching [g] | B11: =1000*('12-Additional data'!G10-'12-Additional data'!G11)*B9*'01-User input'!D14*I13 -> 0.9462912883 | E11: Baseplate area for nickel plating [m2] | F11: =F9*2 -> 0.01167292109 | H11: steel density | I11: 7850
A12: Total foil area for nickel plating [m2] | B12: =1.01*(B9*'12-Additional data'!G10+B9*'12-Additional data'!G11) -> 0.00640013974 | E12: Nickel on baseplate [g] | F12: =F11*I14*Tableau3[[#This Row],[Value]]*1000 -> 0.3116669932 | H12: Alumina substrate density | I12: 3800
A13: Nickel on dbc [g] | B13: =B12*'12-Additional data'!G12*I14*1000 -> 0.1708837311 | H13: Copper | I13: 8960
E14: Contacts | F14: Values | H14: Nickel | I14: 8900
A15: Silicone gel | B15: Values | E15: Auxiliary_terminals area for plating [m2] | F15: ='01-User input'!D53*'01-User input'!D54*'01-User input'!D56*2 -> 0.0006458856 | H15: Gold | I15: 19300
A16: Longeur interieure capot | B16: ='01-User input'!D82-2*'01-User input'!D84 -> 0.09457 | E16: Nickel in aux_terminals [g] | F16: =F15*1000*I14*'12-Additional data'!G13 -> 0.00862257276 | H16: Zinc | I16: 7130
A17: largeur int capot | B17: ='01-User input'!D83-2*'01-User input'!D84 -> 0.05457 | E17: Copper in auxiliary terminals [g] | F17: =F15/2*I13*1000*'01-User input'!D55 -> 1.533590769 | H17: Silicon | I17: 2330
A18: Hauteur intérieur capot | B18: ='01-User input'!D85-'01-User input'!D84 -> 0.027035 | E18: Gold on terminals [g] | F18: =1000*F15*I15*'12-Additional data'!G14 -> 0.01869838812 | H18: AlSiC | I18: 3000
A19: Silicone gel [g] | B19: =(B16*B17*'01-User input'!D42*B18)*1000*Tableau34[[#This Row],[Values]] -> 31.15563752 | H19: Silicon gel | I19: 700
E20: Frame and lid | F20: Values
E21: Total plastic surface | F21: =('01-User input'!D89*'01-User input'!D90*'01-User input'!D91+'01-User input'!D82*'01-User input'!D83*'01-User input'!D86+(2*'01-User input'!D82+2*'01-User input'!D83)*'01-User input'!D85*'01-User input'!D84)*1000*I10 -> 61.3186647 | H21: Summary of masses
A22: Solder | B22: Values | E22: Plastic in frame and lid | F22: =0.68*F21 -> 41.696692 | H22: Substances | I22: Estimated masses [g]
A23: Solder in DCB [g] | B23: =1000*B9*I9*'01-User input'!D94 -> 2.605117386 | E23: Diantimony trioxyde | F23: =0.035*F21 -> 2.146153265 | H23: Aluminium oxide | I23: =B9*I12*1000*'01-User input'!D15 -> 6.68881491
A24: Solder in chip [g] | B24: =1000*I9*F32*'01-User input'!D94 -> 0.5499692259 | E24: Glassfiber | F24: =0.285*F21 -> 17.47581944 | H24: Copper | I24: =F17+F29+F10+Tableau11[Value] -> 181.8990489
H25: Doped silicon | I25: =F33 -> 0.8008926853
A26: Screws and washers | B26: Values | E26: Power terminals | F26: Values | H26: Gold (coating) | I26: =F18 -> 0.01869838812
A27: Steel surface area for galvanization [m2] | B27: =(B28+B29)*2 -> 0.0005470141128 | E27: Power terminal area for plating nickel [m2] | F27: =('01-User input'!D58*'01-User input'!D59*'01-User input'!D61-PI()*'01-User input'!D61*('01-User input'!D62/2)^2)*2 -> 0.003136708131 | H27: Nickel (coating) | I27: =F12+F16+F28+B13 -> 0.5330483505
A28: Screws surface for galvanisation | B28: =PI()*('01-User input'!D34^2-('01-User input'!D34-0.002)^2)*'01-User input'!D33 -> 0.0001494769785 | E28: Nickel in power terminals[g] | F28: =F27*'12-Additional data'!G13*I14*1000 -> 0.04187505354 | H28: Solder | I28: =B23+B24 -> 3.155086612
A29: Washers surface for galvanisation | B29: =PI()*('01-User input'!D38^2-('01-User input'!D38-0.001)^2)*'01-User input'!D37 -> 0.000124030078 | E29: Copper in power terminals [g] | F29: =(F27/2)*'01-User input'!D60*I13*1000 -> 17.9871391 | H29: Low-alloy carbon steel | I29: =B30 -> 8.904938027
A30: Low-alloy carbon steel | B30: =(B28*'01-User input'!D35+B29*'01-User input'!D39)*1000*I11 -> 8.904938027 | H30: Zinc (coating) | I30: =B27*'12-Additional data'!G15*1000 -> 8.205211693e-06
E31: Dies | F31: Values | H31: Plastic total | I31: =F21 -> 61.3186647
A32: Wire bonds | B32: Value | E32: Total chip area [m2] | F32: ='01-User input'!D66*'01-User input'!D67*'01-User input'!D68+'01-User input'!D71*'01-User input'!D72*'01-User input'!D73 -> 0.0007432016567 | H32: Silicone adhesive | I32: ='01-User input'!D94*'01-User input'!D82*'01-User input'!D83*1000*I19 -> 0.42
A33: Copper in wires [g] | B33: =1000*I13*('01-User input'!D19*'01-User input'!D21*PI()*'01-User input'!D20^2+'01-User input'!D23*'01-User input'!D25*PI()*'01-User input'!D24^2) -> 0.2647909111 | E33: Doped silicon | F33: =F32*1000*'01-User input'!D69*I17 -> 0.8008926853 | H33: Silicone gel | I33: =B19 -> 31.15563752
H34: DBC | I34: =I23+B10 -> 23.7220581
I38: =24.4-I23 -> 17.71118509

Sheet 02-DBC
A1: Manufacturing of Direct Copper Bonding(DBC)
A2: Description : | B2: This sheet presents the processes required for the production of the DBC.The obtention process of the DBC starts with the step of production of alumina substrate. Followed by this step is the production of copper foils that'll be bonded to the previous alumina substrate through the process of direct copper bonding. The DBC is then etched through the process of photolithography and the top copper surface is cleaned for the nickel electroplating step. The final product is illustrated by the picture below this textbox. The tables below are adapted from Nordelof et Al. (2019). Each of them represent a step of the production stage of the present component. A description of the flow, its property, quantity, reference source, link to EcoInvent 3 and the uncertainty assessment is given. The colored legend is also explained below.
E8: Illustration :
A9: Legend : | C9: Inflows
C10: Outflows
B11: within system boundary
B12: sorties pour ACV
C13: Seulement la face superieure est nickel plated
A15: Ceramic substrate production
A16: Dispatching / receiving system | B16: Flow description | C16: Flow name | D16: Property and quantity | G16: Reference source | H16: Linked flow / Representation in Ecoinvent 3 | I16: Notes/hypothesis | J16: Uncertainty assessment
D17: Unit | E17: Amount per m² | F17: Scaled amount | J17: GSD | K17: Comment
A18: Technosphere | B18: Product material input | C18: Aluminium oxide | D18: kg | E18: 1.92 | F18: =FIXED(F29*E18,1-(1+INT(LOG10(ABS(F29*E18)))),FALSE) -> 0,007 | G18: Yuping et al. (2000) | H18: Aluminium oxide | J18: 1.25419638 | K18: 2, 4, 5, 3, 3
A19: Technosphere | B19: Energy input | C19: Electricity | D19: kWh | E19: 21 | F19: =FIXED(F29*E19,2-(1+INT(LOG10(ABS(F29*E19)))),FALSE) -> 0,074 | G19: Adj. from Hart et al. (2000) | H19: Electricity, optional | J19: 1.25419638 | K19: 2, 4, 5, 3, 3
A20: Technosphere | B20: Process input | C20: Ammonium polyacrylate | D20: kg | E20: =35*0.001 -> 0.035 | F20: =TEXT(FIXED(F29*E20,2-(1+INT(LOG10(ABS(F29*E20)))),FALSE),"0.0E+00") -> 0.1E-04 | G20: Yuping et al. (2000) | H20: Acrylic dispersion, w/w water, in 65% sol. st. | I20: AA | J20: 1.25419638 | K20: 2, 4, 5, 3, 3
A21: Technosphere | B21: Process input | C21: Glycerin | D21: kg | E21: 0.17 | F21: =TEXT(FIXED(F29*E21,2-(1+INT(LOG10(ABS(F29*E21)))),FALSE),"0.0E+00") -> 0.6E-04 | G21: Yuping et al. (2000) | H21: Glycerine | J21: 1.25419638 | K21: 2, 4, 5, 3, 3
A22: Technosphere | B22: Process input | C22: Polyvinyl alcohol | D22: kg | E22: 0.14 | F22: =TEXT(FIXED(F29*E22,2-(1+INT(LOG10(ABS(F29*E22)))),FALSE),"0.0E+00") -> 0.5E-04 | G22: Yuping et al. (2000) | H22: Acrylic binder, w/w water, in 34% sol. state | I22: BB | J22: 1.25419638 | K22: 2, 4, 5, 3, 3
A23: Technosphere | B23: Process input | C23: Pure water | D23: kg | E23: 1.22 | F23: =FIXED(F29*E23,2-(1+INT(LOG10(ABS(F29*E23)))),FALSE) -> 0,0043 | G23: Yuping et al. (2000) | H23: Water, ultrapure | J23: 1.25419638 | K23: 2, 4, 5, 3, 3
A24: Natural environment | B24: Emission to air | C24: Ammonia | D24: kg | E24: =7.1*0.001 -> 0.0071 | F24: =TEXT(FIXED(F29*E24,2-(1+INT(LOG10(ABS(F29*E24)))),FALSE),"0.0E+00") -> 2.5E-06 | G24: Vanderbilt (2014), Haynes (2016) | H24: Ammonia | J24: 1.252531377 | K24: 2, 4, 1, 3, 3
A25: Natural environment | B25: Emission to air | C25: Carbon dioxide | D25: kg | E25: =77*0.001 -> 0.077 | F25: =TEXT(FIXED(F29*E25,2-(1+INT(LOG10(ABS(F29*E25)))),FALSE),"0.0E+00") -> 0.3E-04 | G25: ScienceLab (2013b, d), Haynes (2016) | H25: Carbon dioxide | J25: 1.112157095 | K25: 2, 4, 1, 3, 3
A26: Natural environment | B26: Emission to air | C26: Carbon monoxide | D26: kg | E26: =49*0.001 -> 0.049 | F26: =TEXT(FIXED(F29*E26,2-(1+INT(LOG10(ABS(F29*E26)))),FALSE),"0.0E+00") -> 0.2E-04 | G26: ScienceLab (2013b, d), Haynes (2016) | H26: Carbon monoxide | J26: 2.254288826 | K26: 2, 4, 1, 3, 3
A27: Natural environment | B27: Emission to air | C27: VOC | D27: kg | E27: =28*0.001 -> 0.028 | F27: =TEXT(FIXED(F29*E27,2-(1+INT(LOG10(ABS(F29*E27)))),FALSE),"0.0E+00") -> 9.9E-06 | G27: Vanderbilt (2014), Haynes (2016) | H27: NMVOC | J27: 1.252531377 | K27: 2, 4, 1, 3, 3
A28: Technosphere | B28: Solid waste | C28: Slurry waste | D28: kg | E28: 0.38 | F28: =TEXT(FIXED(F29*E28,2-(1+INT(LOG10(ABS(F29*E28)))),FALSE),"0.0E+00") -> 1.3E-04 | G28: European Comission (2007) | H28: Hazardous waste, for incineration | I28: CC | J28: 1.122238808 | K28: 2, 4, 3, 3, 3
A29: Within system boundary | B29: Internal flow | C29: Alumina substrate | D29: m² | E29: 1 | F29: ='11-Surface and mass calculation'!B9 -> 0.0035204289 | H29: Internal flow
A31: Copper foils production
A32: Dispatching / receiving system | B32: Flow description | C32: Flow name | D32: Property and quantity | G32: Reference source | H32: Linked flow / Representation in Ecoinvent 3 | I32: Notes/hypothesis | J32: Uncertainty assessment
D33: Unit | E33: Amount per kg | F33: Scaled amount | J33: GSD | K33: Comment
A34: Technosphere | B34: Product material input | C34: Copper, slab, for sheet rolling | D34: kg | E34: 1 | F34: =F37 -> 0.01703324319 | G34: Reference units, see model report. | H34: Copper | J34: 1.063799129 | K34: 2, 4, 1, 2, 2
A35: Technosphere | B35: Process input | C35: Sheet rolling of copper | D35: kWh | E35: 1 | F35: =F37 -> 0.01703324319 | G35: Classen et al. (2009) | H35: Sheet rolling, copper
A36: Technosphere | B36: Process input | C36: Average machine workin of copper | D36: kg | E36: 1 | F36: =F37 -> 0.01703324319 | G36: Steiner and Frischknecht (2007) | H36: Metal working, average for copper product manufacturing
A37: Within system boundary | B37: Internal flow | C37: Copper foils | D37: kg | E37: 1 | F37: ='11-Surface and mass calculation'!B10/1000 -> 0.01703324319 | H37: Internal flow
A39: Direct bonded copper | C39: Flows scaling to: m² of DCB substrate area
A40: Dispatching / receiving system | B40: Flow description | C40: Flow name | D40: Property and quantity | G40: Reference source | H40: Linked flow / Representation in Ecoinvent 3 | I40: Notes/hypothesis | J40: Uncertainty assessment
D41: Unit | E41: Amount per m² | F41: Scaled amount | J41: GSD | K41: Comment
A42: Within system boundary | B42: Sub-component input | C42: Alumina substrate | D42: m² | E42: 1 | F42: =F29 -> 0.0035204289 | G42: Reference units, see model report. | H42: Internal flow | J42: 1.038470723 | K42: 1, 3, 2, 2, 1
A43: Extended system | B43: Sub-component input | C43: Copper foils (ready-made, 500 µm thick) | D43: kg | E43: =F43/F53 -> 4.8384 | F43: =F37 -> 0.01703324319 | G43: Reference units, see model report. | H43: Internal flow | J43: 1.038470723 | K43: 1, 3, 2, 2, 1
A44: Technosphere | B44: Energy input | C44: Electricity, cleaning | D44: kWh | E44: 1 | F44: =TEXT(FIXED(F53*E44,1-(1+INT(LOG10(ABS(F53*E44)))),FALSE), "0E+00") -> 4E-03 | G44: Ning et al. (2003), TM (2010) | H44: Electricity, optional | I44: AA | J44: 1.234558079 | K44: 2, 3, 3, 4, 4
A45: Technosphere | B45: Energy input | C45: Electricity, furnace | D45: kWh | E45: 59 | F45: =FIXED(F53*E45,2) -> 0,21 | G45: Est. from Franz and Weilguni (2011) | H45: Electricity, optional | J45: 1.234558079 | K45: 2, 3, 3, 4, 4
A46: Technosphere | B46: Energy input | C46: Electricity, ventilation | D46: kWh | E46: 15 | F46: =FIXED(F53*E46,2) -> 0,05 | G46: Adapted from Aros data, see 5.1.3. | H46: Electricity, optional | I46: BB | J46: 1.104617083 | K46: 2, 3, 1, 3, 3
A47: Technosphere | B47: Process input | C47: Acetone | D47: kg | E47: =90*0.001 -> 0.09 | F47: =FIXED(F53*E47,1-(1+INT(LOG10(ABS(F53*E47)))),FALSE) -> 0,0003 | G47: Ning et al. (2003), TM (2010) | H47: Acetone, liquid | J47: 1.234558079 | K47: 2, 3, 3, 4, 4
A48: Technosphere | B48: Process input | C48: Deionized water | D48: kg | E48: 0.8 | F48: =TEXT(FIXED(F53*E48,1-(1+INT(LOG10(ABS(F53*E48)))),FALSE), "0E+00") -> 3E-03 | G48: Ning et al. (2003), TM (2010) | H48: Water, deionised, from tap water, at user | J48: 1.234558079 | K48: 2, 3, 3, 4, 4
A49: Technosphere | B49: Process input | C49: Hydrochloric acid | D49: kg | E49: =150*0.001 -> 0.15 | F49: =F53*E49 -> 0.000528064335 | G49: Tank volume from TM (2010) | H49: Hydrochloric acid, w/w, in 30% sol. state | J49: 1.234558079 | K49: 2, 3, 3, 4, 4
A50: Technosphere | B50: Process input | C50: Isopropanol | D50: kg | E50: =260*0.001 -> 0.26 | F50: =FIXED(F53*E50,1-(1+INT(LOG10(ABS(F53*E50)))),FALSE) -> 0,0009 | G50: Ning et al. (2003), TM (2010) | H50: Isopropanol | J50: 1.234558079 | K50: 2, 3, 3, 4, 4
A51: Technosphere | B51: Process input | C51: Nitrogen | D51: kg | E51: 175 | F51: =FIXED(F53*E51,1) -> 0,6 | G51: Ghasemi et al. (2008) | H51: Nitrogen, liquid | J51: 1.234558079 | K51: 2, 3, 3, 4, 4
A52: Technosphere | B52: Liquid waste | C52: Waste solvents, conc. share of dilution | D52: kg | E52: 0.5 | F52: =F53*E52 -> 0.00176021445 | G52: Calculated | H52: Spent solvent mixture | I52: CC | J52: 1.234558079 | K52: 2, 3, 3, 4, 4
A53: Within system boundary | B53: Internal flow | C53: DCB, before etching | D53: m² | E53: 1 | F53: =F29 -> 0.0035204289 | H53: Internal flow
A55: Photolithographic regenerative etching of the upper copper foil of the DCB | G55: Flows scaling to: kg of copper removed
A56: Dispatching / receiving system | B56: Flow description | C56: Flow name | D56: Property and quantity | G56: Reference source | H56: Linked flow / Representation in Ecoinvent 3 | I56: Notes/hypothesis | J56: Uncertainty assessment
D57: Unit | E57: Amount per m² | F57: Scaled amount | J57: GSD | K57: Comment
A58: Within system boundary | B58: Sub-component input | C58: Copper in upper foil to be removed | D58: kg | E58: 1 | F58: ='11-Surface and mass calculation'!B11/1000 -> 0.0009462912883 | G58: Reference units, see model report. | H58: Internal flow | I58: BB | J58: 1.052569959 | K58: 2, 3, 2, 2, 2
A59: Technosphere | B59: Energy input | C59: Electricity | D59: kWh | E59: 0.2 | F59: =E59*F58 -> 0.0001892582577 | G59: Chemcut (2010) | H59: Electricity, optional | J59: 1.105308987 | K59: 2, 3, 2, 2, 3
A60: Technosphere | B60: Process input | C60: Chlorine gas | D60: kg | E60: 1.1 | F60: =E60*F58 -> 0.001040920417 | G60: Chemcut (2012) | H60: Chlorine, gaseous | J60: 1.253988669 | K60: 3, 3, 4, 2, 4
A61: Technosphere | B61: Process input | C61: Hydrochloric acid | D61: kg | E61: 0.9 | F61: =E61*F58 -> 0.0008516621595 | G61: Chemcut (2010) | H61: Hydrochloric acid, w/w, in 30% sol. state | J61: 1.253988669 | K61: 3, 3, 4, 2, 4
A62: Technosphere | B62: Process input | C62: Water | D62: kg | E62: 6.6 | F62: =E62*F58 -> 0.006245522503 | G62: Chemcut (2012) | H62: Water, deionised, from tap water, at user | J62: 1.253988669 | K62: 3, 3, 4, 2, 4
A63: Technosphere | B63: Solid waste | C63: Cupric chloride | D63: kg | E63: 2.1 | F63: =E63*F58 -> 0.001987211705 | G63: Calculated, Haynes (2016) | H63: Cupric chloride, for recycling | I63: This link to Ecoinvent is not adaptd anymore. The data is absent in the database | J63: 1.253988669 | K63: 3, 3, 4, 2, 4
A65: Cleaning of metal surfaces before electroplating
A66: Dispatching / receiving system | B66: Flow description | C66: Flow name | D66: Property and quantity | G66: Reference source | H66: Linked flow / Representation in Ecoinvent 3 | I66: Notes/hypothesis | J66: Uncertainty assessment
D67: Unit | E67: Amount per m² | F67: Scaled amount | J67: GSD | K67: Comment
A68: Extended system | B68: Unaltered sub-component input | C68: DCB, patterned (not plated) | D68: m² | E68: 1 | F68: =F29 -> 0.0035204289 | G68: Reference units, see model report. | H68: Internal flow
A69: Technosphere | B69: Energy input | C69: Electricity | D69: kWh | E69: 0.42 | F69: =E69*F68 -> 0.001478580138 | G69: Moing et al. (2009) | H69: Electricity, optional | J69: 1.079309719 | K69: 2, 4, 3, 2, 2
A70: Technosphere | B70: Processing input | C70: Caustic soda | D70: kg | E70: =10*0.001 -> 0.01 | F70: =E70*F68 -> 3.5204289e-05 | G70: Moing et al. (2009) | H70: Sodium hydroxide, without water | J70: 1.079309719 | K70: 2, 4, 3, 2, 2
A71: Technosphere | B71: Processing input | C71: Sulfuric acid | D71: kg | E71: =18*0.001 -> 0.018 | F71: =E71*F68 -> 6.33677202e-05 | G71: Moing et al. (2009) | H71: Sulfuric acid | J71: 1.079309719 | K71: 2, 4, 3, 2, 2
A72: Technosphere | B72: Processing input | C72: Water | D72: kg | E72: 16 | F72: =E72*F68 -> 0.0563268624 | G72: Moing et al. (2009) | H72: Water, deionised, from tap water, at user | J72: 1.079309719 | K72: 2, 4, 3, 2, 2
A73: Technosphere | B73: Liquid waste | C73: Wastewater | D73: m³ | E73: =16*0.001 -> 0.016 | F73: =E73*F68 -> 5.63268624e-05 | G73: Calculated | H73: Wastewater, average | J73: 1.079309719 | K73: 2, 4, 3, 2, 2
A74: Within system boundary | B74: Internal flow | C74: DCB, patterned, cleaned for plating | D74: m² | E74: 1 | F74: =F68 -> 0.0035204289 | H74: Internal flow
A76: Electroplating nickel on copper and brass parts | D76: Flows scaling to: kg of nickel
A77: Dispatching / receiving system | B77: Flow description | C77: Flow name | D77: Property and quantity | G77: Reference source | H77: Linked flow / Representation in Ecoinvent 3 | I77: Notes/hypothesis | J77: Uncertainty assessment
D78: Unit | E78: Amount per m² | F78: Scaled amount | J78: GSD | K78: Comment
A79: Technosphere | B79: Product material input | C79: Nickel | D79: kg | E79: =1053*0.001 -> 1.053 | F79: =(F83*E79) -> 0.0001799405688 | G79: Calculated from bath efficiency | H79: Nickel, 99.5% | I79: Nickel, 99.5% | J79: 1.079309719 | K79: 2, 4, 3, 2, 2
A80: Technosphere | B80: Energy input | C80: Electricity | D80: kWh | E80: 4.8 | F80: =F83*E80 -> 0.0008202419091 | G80: Modified from Moing et al. (2009) | H80: Electricity, optional | I80: Electricity, optional | J80: 1.079309719 | K80: 2, 4, 3, 2, 2
A81: Natural environment | B81: Emission to air | C81: Nickel | D81: kg | E81: =42*0.000001 -> 4.2e-05 | F81: =(F83*E81) -> 7.177116705e-09 | G81: Moing et al. (2009) | H81: Nickel, unspecified | I81: Nickel, unspecified | J81: 2.246693762 | K81: 2, 4, 3, 2, 2
A82: Technosphere | B82: Solid waste | C82: Sludge, dry content | D82: kg | E82: =53*0.001 -> 0.053 | F82: =(F83*E82) -> 9.056837746e-06 | G82: Calculated | H82: Hazardous waste, optional | I82: Hazardous waste, optional | J82: 1.079309719 | K82: 2, 4, 3, 2, 2
A83: Within unit process | B83: Internal flow | C83: Nickel, in plated layer | D83: kg | E83: 1 | F83: ='11-Surface and mass calculation'!B13/1000 -> 0.0001708837311 | H83: Internal flow | I83: Internal flow
D85: Flows scaling to: m² of plated area
A86: Dispatching / receiving system | B86: Flow description | C86: Flow name | D86: Property and quantity | G86: Reference source | H86: Linked flow / Representation in Ecoinvent 3 | I86: Notes/hypothesis | J86: Uncertainty assessment
D87: Unit | E87: Amount per m² | F87: Scaled amount | J87: GSD | K87: Comment
A88: Within unit process | B88: Internal flow | C88: Nickel, in plated layers | D88: m² | E88: 1 | F88: =F83 -> 0.0001708837311 | G88: Reference units, see model report. | H88: Internal flow
A89: Within system boundary | B89: Sub-component input | C89: DCB, patterned, cleaned for plating | D89: m² | E89: 1 | F89: =F74 -> 0.0035204289 | G89: Reference units, see model report. | H89: Internal flow | J89: 1.079309719 | K89: 2, 4, 3, 2, 2
A90: Technosphere | B90: Processing input | C90: Water | D90: kg | E90: 8 | F90: =E90*F89 -> 0.0281634312 | G90: Moing et al. (2009) | H90: Water, deionised, from tap water, at user | J90: 1.079309719 | K90: 2, 4, 3, 2, 2
A91: Natural environment | B91: Emission to water | C91: Nickel, in sulfamate | D91: kg | E91: =0.4*0.000001 -> 4e-07 | F91: =E91*F89 -> 1.40817156e-09 | G91: Moing et al. (2009) | H91: Nickel, ion | J91: 2.246693762 | K91: 2, 4, 3, 2, 2
A92: Technosphere | B92: Liquid waste | C92: Wastewater | D92: m³ | E92: =8*0.001 -> 0.008 | F92: =E92*F89 -> 2.81634312e-05 | G92: Calculated | H92: Wastewater, average | J92: 1.079309719 | K92: 2, 4, 3, 2, 2
A93: Within system boundary | B93: Internal flow | C93: DCB substrate, patterned, nickel plated | D93: m² | E93: 1 | F93: =F89 -> 0.0035204289 | H93: Internal flow

Sheet 03-Baseplate
A1: Manufacturing of baseplate
A2: Description : | B2: This sheet presents the processes required for the production of the baseplate. The obtention process of the baseplate starts with the step of production of the copper plate. The follow-up is the cleaning step which prepares the baseplate for the nickel electroplating. The final product is illustrated by the picture below this textbox. The tables below are adapted from Nordelof et Al. (2019). Each of them represent a step of the production stage of the present component. A description of the flow, its property, quantity, reference source, link to EcoInvent 3 and the uncertainty assessment is given. The colored legend is also explained below.
E8: Illustration :
A9: Legend : | C9: Inflows
C10: Outflows
C13: Les 2 faces sont nickel plated
A15: Production of copper plate
A16: Dispatching / receiving system | B16: Flow description | C16: Flow name | D16: Property and quantity | G16: Reference source | H16: Linked flow / Representation in Ecoinvent 3 | I16: Notes/hypothesis | J16: Uncertainty assessment
D17: Unit | E17: Amount per kg | F17: Scaled amount | J17: GSD | K17: Comment
A18: Technosphere | B18: Product material input | C18: Copper, slab, for sheet rolling | D18: kg | E18: 1 | F18: =F21 -> 0.1621135281 | G18: Reference units, see model report. | H18: Copper | J18: 1.063799129 | K18: 2, 4, 1, 2, 2
A19: Technosphere | B19: Process input | C19: Sheet rolling of copper | D19: kWh | E19: 1 | F19: =F21 -> 0.1621135281 | G19: Classen et al. (2009) | H19: Sheet rolling, copper
A20: Technosphere | B20: Process input | C20: Average machine workin of copper | D20: kg | E20: 1 | F20: =F21 -> 0.1621135281 | G20: Steiner and Frischknecht (2007) | H20: Metal working, average for copper product manufacturing
A21: Within system boundary | B21: Internal flow | C21: Copper foils, contacts, plates, bus bar | D21: kg | E21: 1 | F21: ='11-Surface and mass calculation'!F10/1000 -> 0.1621135281 | H21: Internal flow
A23: Cleaning of metal surfaces before electroplating
A24: Dispatching / receiving system | B24: Flow description | C24: Flow name | D24: Property and quantity | G24: Reference source | H24: Linked flow / Representation in Ecoinvent 3 | I24: Notes/hypothesis | J24: Uncertainty assessment
D25: Unit | E25: Amount per kg | F25: Scaled amount | J25: GSD | K25: Comment
A26: Extended system | B26: Unaltered sub-component input | C26: Baseplate(not plated) | D26: m² | E26: 1 | F26: =F32 -> 0.01167292109
A27: Technosphere | B27: Energy input | C27: Electricity | D27: kWh | E27: 0.42 | F27: =E27*F26 -> 0.004902626859 | G27: Moing et al. (2009) | H27: Electricity, optional | J27: 1.079309719 | K27: 2, 4, 3, 2, 2
A28: Technosphere | B28: Processing input | C28: Caustic soda | D28: kg | E28: =10*0.001 -> 0.01 | F28: =E28*F26 -> 0.0001167292109 | G28: Moing et al. (2009) | H28: Sodium hydroxide, without water | J28: 1.079309719 | K28: 2, 4, 3, 2, 2
A29: Technosphere | B29: Processing input | C29: Sulfuric acid | D29: kg | E29: =18*0.001 -> 0.018 | F29: =E29*F26 -> 0.0002101125797 | G29: Moing et al. (2009) | H29: Sulfuric acid | J29: 1.079309719 | K29: 2, 4, 3, 2, 2
A30: Technosphere | B30: Processing input | C30: Water | D30: kg | E30: 16 | F30: =E30*F26 -> 0.1867667375 | G30: Moing et al. (2009) | H30: Water, deionised, from tap water, at user | J30: 1.079309719 | K30: 2, 4, 3, 2, 2
A31: Technosphere | B31: Liquid waste | C31: Wastewater | D31: m3 | E31: 16 | F31: =E31*F26/1000 -> 0.0001867667375 | G31: Calculated | H31: Wastewater, average | J31: 1.079309719 | K31: 2, 4, 3, 2, 2
A32: Within system boundary | B32: Internal flow | C32: Baseplate,cleaned for plating | D32: m² | E32: 1 | F32: ='11-Surface and mass calculation'!F11 -> 0.01167292109
A34: Electroplating nickel on copper and brass parts | D34: Flows scaling to: kg of nickel
A35: Dispatching / receiving system | B35: Flow description | C35: Flow name | D35: Property and quantity | G35: Reference source | H35: Linked flow / Representation in Ecoinvent 3 | I35: Notes/hypothesis | J35: Uncertainty assessment
D36: Unit | E36: Amount per m² | F36: Scaled amount | J36: GSD | K36: Comment
A37: Technosphere | B37: Product material input | C37: Nickel | D37: kg | E37: =1053*0.001 -> 1.053 | F37: =E37*F$41 -> 0.0003281853438 | G37: Calculated from bath efficiency | H37: Nickel, 99.5% | J37: 1.079309719 | K37: 2, 4, 3, 2, 2
A38: Technosphere | B38: Energy input | C38: Electricity | D38: kWh | E38: 4.8 | F38: 0.001496001567 | G38: Modified from Moing et al. (2009) | H38: Electricity, optional | J38: 1.079309719 | K38: 2, 4, 3, 2, 2
A39: Natural environment | B39: Emission to air | C39: Nickel | D39: kg | E39: =42*0.000001 -> 4.2e-05 | F39: 1.309001371e-08 | G39: Moing et al. (2009) | H39: Nickel, unspecified | I39: AA | J39: 2.246693762 | K39: 2, 4, 3, 2, 2
A40: Technosphere | B40: Solid waste | C40: Sludge, dry content | D40: kg | E40: =53*0.001 -> 0.053 | F40: 1.651835064e-05 | G40: Calculated | H40: Hazardous waste, optional | J40: 1.079309719 | K40: 2, 4, 3, 2, 2
A41: Within unit process | B41: Internal flow | C41: Nickel, in plated layer | D41: kg | E41: 1 | F41: ='11-Surface and mass calculation'!F12/1000 -> 0.0003116669932 | H41: Internal flow
D43: Flows scaling to: m² of plated area
A44: Dispatching / receiving system | B44: Flow description | C44: Flow name | D44: Property and quantity | G44: Reference source | H44: Linked flow / Representation in Ecoinvent 3 | I44: Notes/hypothesis | J44: Uncertainty assessment
D45: Unit | E45: Amount per m² | F45: Scaled amount | J45: GSD | K45: Comment
A46: Within unit process | B46: Internal flow | C46: Nickel, in plated layers | D46: m² | E46: 1 | F46: =F41 -> 0.0003116669932 | G46: Reference units, see model report. | H46: Internal flow
A47: Within system boundary | B47: Internal flow | C47: Baseplate,cleaned for plating | D47: m² | E47: 1 | F47: =F32 -> 0.01167292109 | G47: Reference units, see model report. | H47: Internal flow
A48: Technosphere | B48: Processing input | C48: Water | D48: kg | E48: 8 | F48: =E48*F$51 -> 0.09338336874 | G48: Moing et al. (2009) | H48: Water, deionised, from tap water, at user | J48: 1.079309719 | K48: 2, 4, 3, 2, 2
A49: Natural environment | B49: Emission to water | C49: Nickel, in sulfamate | D49: kg | E49: =0.4*0.000001 -> 4e-07 | F49: 4.669168437e-09 | G49: Moing et al. (2009) | H49: Nickel, ion | J49: 2.246693762 | K49: 2, 4, 3, 2, 2
A50: Technosphere | B50: Liquid waste | C50: Wastewater | D50: m³ | E50: =8*0.001 -> 0.008 | F50: 9.338336874e-05 | G50: Calculated | H50: Wastewater, average | J50: 1.079309719 | K50: 2, 4, 3, 2, 2
A51: Within system boundary | B51: Internal flow | C51: Baseplate,nickel plated | D51: m² | E51: 1 | F51: =F47 -> 0.01167292109

Sheet 04-Semiconductors
A1: Manufacturing of semiconductors
A2: Description : | B2: This sheet presents the processes required for the production of the IGBT chips. This process is not very representative of semicondutors used in the field of power electronics but is the only available data today in EcoInvent database. The final product is illustrated by the picture below this textbox. The tables below are adapted from Nordelof et Al. (2019). Each of them represent a step of the production stage of the present component. A description of the flow, its property, quantity, reference source, link to EcoInvent 3 and the uncertainty assessment is given. The colored legend is also explained below.
E8: Illustration :
A9: Legend : | C9: Inflows
C10: Outflows
A15: Fabrication of IGBT chips (for the power module)
A16: Dispatching / receiving system | B16: Flow description | C16: Flow name | D16: Property and quantity | G16: Reference source | H16: Linked flow / Representation in Ecoinvent 3 | I16: Notes/hypothesis | J16: Uncertainty assessment
D17: Unit | E17: Amount per kg | F17: Scaled amount | J17: GSD | K17: Comment
A18: Technosphere | B18: Sub-component input | C18: Silicon wafer, for power module IGBT chips | D18: m² | E18: 1 | F18: =F20 -> 0.0007432016567 | G18: Calculated from mass scaling | H18: Wafer production, fabricated, for IC | J18: 1.04602786 | K18: 2, 3, 2, 2, 1
A19: Technosphere | B19: Energy input | C19: Electricity for dicing wafer into chips | D19: Wh | E19: 0 | F19: 0 | G19: Scholland and Dillon (2012) | H19: Estimated as negligible
A20: Within system boundary | B20: Internal flow | C20: Diced IGBT chips, for power module ass. | D20: m² | E20: 1 | F20: ='11-Surface and mass calculation'!F32 -> 0.0007432016567 | H20: Internal flow

Sheet 05-Contacts
A1: Manufacturing of auxiliary terminals
A2: Description : | B2: This sheet presents the processes required for the production of the contacts(control or auxiliary terminals).The obtention process starts with the step of production of copper contacts. Followed by this step is the cleaning step for nickel electroplating first. The new electroplated surface is then activated through a cleaning proces for gold electroplating process.The final product is illustrated by the picture below this textbox. The tables below are adapted from Nordelof et Al. (2019). Each of them represent a step of the production stage of the present component. A description of the flow, its property, quantity, reference source, link to EcoInvent 3 and the uncertainty assessment is given. The colored legend is also explained below.
E8: Illustration :
A9: Legend : | C9: Inflows
C10: Outflows
C13: Les 2 faces sont plated
A15: Production of copper contacts
A16: Dispatching / receiving system | B16: Flow description | C16: Flow name | D16: Property and quantity | G16: Reference source | H16: Linked flow / Representation in Ecoinvent 3 | I16: Notes/hypothesis | J16: Uncertainty assessment
D17: Unit | E17: Amount per kg | F17: Scaled amount | J17: GSD | K17: Comment
A18: Technosphere | B18: Product material input | C18: Copper, slab, for sheet rolling | D18: kg | E18: 1 | F18: =F21 -> 0.001533590769 | G18: Reference units, see model report. | H18: Copper | J18: 1.063799129 | K18: 2, 4, 1, 2, 2
A19: Technosphere | B19: Process input | C19: Sheet rolling of copper | D19: kWh | E19: 1 | F19: =F21 -> 0.001533590769 | G19: Classen et al. (2009) | H19: Sheet rolling, copper
A20: Technosphere | B20: Process input | C20: Average machine workin of copper | D20: kg | E20: 1 | F20: =F21 -> 0.001533590769 | G20: Steiner and Frischknecht (2007) | H20: Metal working, average for copper product manufacturing
A21: Within system boundary | B21: Internal flow | C21: Copper foils, contacts, plates, bus bar | D21: kg | E21: 1 | F21: ='11-Surface and mass calculation'!F17/1000 -> 0.001533590769 | H21: Internal flow
A23: Cleaning of metal surfaces before electroplating
A24: Dispatching / receiving system | B24: Flow description | C24: Flow name | D24: Property and quantity | G24: Reference source | H24: Linked flow / Representation in Ecoinvent 3 | I24: Notes/hypothesis | J24: Uncertainty assessment
D25: Unit | E25: Amount per kg | F25: Scaled amount | J25: GSD | K25: Comment
A26: Extended system | B26: Unaltered sub-component input | C26: Contacts (not plated) | D26: m² | E26: 1 | F26: =F32 -> 0.0006458856
A27: Technosphere | B27: Energy input | C27: Electricity | D27: kWh | E27: 0.42 | F27: =E27*F$32 -> 0.000271271952 | G27: Moing et al. (2009) | H27: Electricity, optional | J27: 1.079309719 | K27: 2, 4, 3, 2, 2
A28: Technosphere | B28: Processing input | C28: Caustic soda | D28: kg | E28: =10*0.001 -> 0.01 | F28: 6.458856e-06 | G28: Moing et al. (2009) | H28: Sodium hydroxide, without water | J28: 1.079309719 | K28: 2, 4, 3, 2, 2
A29: Technosphere | B29: Processing input | C29: Sulfuric acid | D29: kg | E29: =18*0.001 -> 0.018 | F29: 1.16259408e-05 | G29: Moing et al. (2009) | H29: Sulfuric acid | J29: 1.079309719 | K29: 2, 4, 3, 2, 2
A30: Technosphere | B30: Processing input | C30: Water | D30: kg | E30: 16 | F30: 0.0103341696 | G30: Moing et al. (2009) | H30: Water, deionised, from tap water, at user | J30: 1.079309719 | K30: 2, 4, 3, 2, 2
A31: Technosphere | B31: Liquid waste | C31: Wastewater | D31: m3 | E31: =16/1000 -> 0.016 | F31: 1.03341696e-05 | G31: Calculated | H31: Wastewater, average | J31: 1.079309719 | K31: 2, 4, 3, 2, 2
A32: Within system boundary | B32: Internal flow | C32: Contacts,cleaned for plating | D32: m² | E32: 1 | F32: ='11-Surface and mass calculation'!F15 -> 0.0006458856
A34: Electroplating nickel on copper and brass parts | D34: Flows scaling to: kg of nickel
A35: Dispatching / receiving system | B35: Flow description | C35: Flow name | D35: Property and quantity | G35: Reference source | H35: Linked flow / Representation in Ecoinvent 3 | I35: Notes/hypothesis | J35: Uncertainty assessment
D36: Unit | E36: Amount per m² | F36: Scaled amount | J36: GSD | K36: Comment
A37: Technosphere | B37: Product material input | C37: Nickel | D37: kg | E37: =1053*0.001 -> 1.053 | F37: =E37*F$41 -> 9.079569116e-06 | G37: Calculated from bath efficiency | H37: Nickel, 99.5% | J37: 1.079309719 | K37: 2, 4, 3, 2, 2
A38: Technosphere | B38: Energy input | C38: Electricity | D38: kWh | E38: 4.8 | F38: 4.138834925e-05 | G38: Modified from Moing et al. (2009) | H38: Electricity, optional | J38: 1.079309719 | K38: 2, 4, 3, 2, 2
A39: Natural environment | B39: Emission to air | C39: Nickel | D39: kg | E39: =42*0.000001 -> 4.2e-05 | F39: 3.621480559e-10 | G39: Moing et al. (2009) | H39: Nickel, unspecified | I39: AA | J39: 2.246693762 | K39: 2, 4, 3, 2, 2
A40: Technosphere | B40: Solid waste | C40: Sludge, dry content | D40: kg | E40: =53*0.001 -> 0.053 | F40: 4.569963563e-07 | G40: Calculated | H40: Hazardous waste, optional | J40: 1.079309719 | K40: 2, 4, 3, 2, 2
A41: Within unit process | B41: Internal flow | C41: Nickel, in plated layer | D41: kg | E41: 1 | F41: ='11-Surface and mass calculation'!F16/1000 -> 8.62257276e-06 | H41: Internal flow
D43: Flows scaling to: m² of plated area
A44: Dispatching / receiving system | B44: Flow description | C44: Flow name | D44: Property and quantity | G44: Reference source | H44: Linked flow / Representation in Ecoinvent 3 | I44: Notes/hypothesis | J44: Uncertainty assessment
D45: Unit | E45: Amount per m² | F45: Scaled amount | J45: GSD | K45: Comment
A46: Within unit process | B46: Internal flow | C46: Nickel, in plated layers | D46: m² | E46: 1 | F46: =F41 -> 8.62257276e-06 | G46: Reference units, see model report. | H46: Internal flow
A47: Within system boundary | B47: Internal flow | C47: Contacts, cleaned for plating | D47: m² | E47: 1 | F47: =F32 -> 0.0006458856 | G47: Reference units, see model report. | H47: Internal flow
A48: Technosphere | B48: Processing input | C48: Water | D48: kg | E48: 8 | F48: =E48*F$51 -> 0.0051670848 | G48: Moing et al. (2009) | H48: Water, deionised, from tap water, at user | J48: 1.079309719 | K48: 2, 4, 3, 2, 2
A49: Natural environment | B49: Emission to water | C49: Nickel, in sulfamate | D49: kg | E49: =0.4*0.000001 -> 4e-07 | F49: 2.5835424e-10 | G49: Moing et al. (2009) | H49: Nickel, ion | J49: 2.246693762 | K49: 2, 4, 3, 2, 2
A50: Technosphere | B50: Liquid waste | C50: Wastewater | D50: m³ | E50: =8*0.001 -> 0.008 | F50: 5.1670848e-06 | G50: Calculated | H50: Wastewater, average | J50: 1.079309719 | K50: 2, 4, 3, 2, 2
A51: Within system boundary | B51: Internal flow | C51: Contacts,nickel plated | D51: m² | E51: 1 | F51: =F47 -> 0.0006458856
A53: Cleaning (activating) of nickel surface before gold electroplating
A54: Dispatching / receiving system | B54: Flow description | C54: Flow name | D54: Property and quantity | G54: Reference source | H54: Linked flow / Representation in Ecoinvent 3 | I54: Notes/hypothesis | J54: Uncertainty assessment
D55: Unit | E55: Amount per m² | F55: Scaled amount | J55: GSD | K55: Comment
A56: Extended system | B56: Unaltered sub-component input | C56: Nickel plated contacts (auxiliary terminals) | D56: m² | E56: 1 | F56: =F51 -> 0.0006458856 | G56: Reference units, see model report. | H56: Internal flow
A57: Technosphere | B57: Processing input | C57: Hydrochloric acid | D57: kg | E57: 0.022 | F57: =E57*F$60 -> 1.42094832e-05 | G57: Moing et al. (2009) | H57: Hydrochloric acid, w/w, in 30% sol. state | J57: 1.121873438 | K57: 2, 4, 3, 2, 3
A58: Technosphere | B58: Processing input | C58: Water | D58: kg | E58: 8 | F58: 0.0051670848 | G58: Moing et al. (2009) | H58: Water, deionised, from tap water, at user | I58: AA | J58: 1.121873438 | K58: 2, 4, 3, 2, 3
A59: Technosphere | B59: Liquid waste | C59: Wastewater | D59: m³ | E59: 0.008 | F59: 5.1670848e-06 | G59: Calculated | H59: Wastewater, average | J59: 1.121873438 | K59: 2, 4, 3, 2, 3
A60: Within system boundary | B60: Internal flow | C60: Nickel plated contacts, cleaned | D60: m² | E60: 1 | F60: =F56 -> 0.0006458856 | H60: Internal flow
A62: Electroplating gold on nickel plated terminals | D62: Flows scaling to: kg of gold
A63: Dispatching / receiving system | B63: Flow description | C63: Flow name | D63: Property and quantity | G63: Reference source | H63: Linked flow / Representation in Ecoinvent 3 | I63: Notes/hypothesis | J63: Uncertainty assessment
D64: Unit | E64: Amount per m² | F64: Scaled amount | J64: GSD | K64: Comment
A65: Technosphere | B65: Product material input | C65: Gold | D65: kg | E65: 1.01 | F65: =E65*F$69 -> 1.8885372e-05 | G65: Calculated from bath efficiency | H65: Gold | J65: 1.121873438 | K65: 2, 4, 3, 2, 3
A66: Technosphere | B66: Energy input | C66: Electricity | D66: kWh | E66: 0.0007 | F66: 1.308887168e-08 | G66: Calculated, see model report | H66: Electricity, optional | J66: 1.121873438 | K66: 2, 4, 3, 2, 3
A67: Natural environment | B67: Emission to air | C67: Cyanide | D67: kg | E67: 0.056 | F67: 1.047109735e-06 | G67: US EPA (1996) | H67: Cyanide, unspecified | I67: AA | J67: 1.439329175 | K67: 2, 4, 3, 2, 3
A68: Technosphere | B68: Solid waste | C68: Sludge, dry content | D68: kg | E68: 0.01 | F68: 1.869838812e-07 | G68: Calculated | H68: Hazardous waste, optional | J68: 1.121873438 | K68: 2, 4, 3, 2, 3
A69: Within unit process | B69: Internal flow | C69: Gold, in plated layer | D69: kg | E69: 1 | F69: ='11-Surface and mass calculation'!F18/1000 -> 1.869838812e-05 | H69: Internal flow
A71: Flows scaling to: m² of plated area
A72: Dispatching / receiving system | B72: Flow description | C72: Flow name | D72: Property and quantity | G72: Reference source | H72: Linked flow / Representation in Ecoinvent 3 | I72: Notes/hypothesis | J72: Uncertainty assessment
D73: Unit | E73: Amount per m² | F73: Scaled amount | J73: GSD | K73: Comment
A74: Within unit process | B74: Internal flow | C74: Gold, in plated layer | D74: m² | E74: 1 | F74: =F69 -> 1.869838812e-05 | G74: Reference units, see model report. | H74: Internal flow
A75: Within system boundary | B75: Sub-component input | C75: Nickel plated contacts, cleaned | D75: m² | E75: 1 | F75: =F60 -> 0.0006458856 | G75: Reference units, see model report. | H75: Internal flow | J75: 1.121873438 | K75: 2, 4, 3, 2, 3
A76: Technosphere | B76: Processing input | C76: Water | D76: kg | E76: 8 | F76: =E76*F$79 -> 0.0051670848 | G76: Moing et al. (2009) | H76: Water, deionised, from tap water, at user | I76: AA | J76: 1.121873438 | K76: 2, 4, 3, 2, 3
A77: Natural environment | B77: Emission to water | C77: Cyanide | D77: kg | E77: 2.2e-05 | F77: 1.42094832e-08 | G77: Schlesinger and Paunovic (2010) | H77: Cyanide, unspecified | J77: 1.749147955 | K77: 2, 4, 3, 2, 3
A78: Technosphere | B78: Liquid waste | C78: Wastewater | D78: m³ | E78: 0.008 | F78: 5.1670848e-06 | G78: Calculated | H78: Wastewater, average | J78: 1.121873438 | K78: 2, 4, 3, 2, 3
A79: Within system boundary | B79: Internal flow | C79: Gold plated contacts | D79: m² | E79: 1 | F79: =F75 -> 0.0006458856 | H79: Internal flow

Sheet 06-Power terminals
A1: Manufacturing of power terminals
A2: Description : | B2: This sheet presents the processes required for the production of the power terminals. The obtention process starts with the step of production of copper terminals. Followed by this step is the cleaning before the nickel electroplating step.The final product is illustrated by the picture below this textbox. The tables below are adapted from Nordelof et Al. (2019). Each of them represent a step of the production stage of the present component. A description of the flow, its property, quantity, reference source, link to EcoInvent 3 and the uncertainty assessment is given. The colored legend is also explained below.
E8: Illustration :
A9: Legend : | C9: Inflows
C10: Outflows
C13: Les 2 faces sont plated
A15: Production of copper terminals
A16: Dispatching / receiving system | B16: Flow description | C16: Flow name | D16: Property and quantity | G16: Reference source | H16: Linked flow / Representation in Ecoinvent 3 | I16: Notes/hypothesis | J16: Uncertainty assessment
D17: Unit | E17: Amount per kg | F17: Scaled amount | J17: GSD | K17: Comment
A18: Technosphere | B18: Product material input | C18: Copper, slab, for sheet rolling | D18: kg | E18: 1 | F18: =F$21 -> 0.0179871391 | G18: Reference units, see model report. | H18: Copper | J18: 1.063799129 | K18: 2, 4, 1, 2, 2
A19: Technosphere | B19: Process input | C19: Sheet rolling of copper | D19: kWh | E19: 1 | F19: 0.0179871391 | G19: Classen et al. (2009) | H19: Sheet rolling, copper
A20: Technosphere | B20: Process input | C20: Average machine workin of copper | D20: kg | E20: 1 | F20: 0.0179871391 | G20: Steiner and Frischknecht (2007) | H20: Metal working, average for copper product manufacturing
A21: Within system boundary | B21: Internal flow | C21: Copper foils, contacts, plates, bus bar | D21: kg | E21: 1 | F21: ='11-Surface and mass calculation'!F29/1000 -> 0.0179871391 | H21: Internal flow
A23: Cleaning of metal surfaces before electroplating
A24: Dispatching / receiving system | B24: Flow description | C24: Flow name | D24: Property and quantity | G24: Reference source | H24: Linked flow / Representation in Ecoinvent 3 | I24: Notes/hypothesis | J24: Uncertainty assessment
D25: Unit | E25: Amount per kg | F25: Scaled amount | J25: GSD | K25: Comment
A26: Extended system | B26: Unaltered sub-component input | C26: Power terminals (not plated) | D26: m² | E26: 1 | F26: =F32 -> 0.003136708131
A27: Technosphere | B27: Energy input | C27: Electricity | D27: kWh | E27: 0.42 | F27: =E27*F$32 -> 0.001317417415 | G27: Moing et al. (2009) | H27: Electricity, optional | J27: 1.079309719 | K27: 2, 4, 3, 2, 2
A28: Technosphere | B28: Processing input | C28: Caustic soda | D28: kg | E28: =10*0.001 -> 0.01 | F28: 3.136708131e-05 | G28: Moing et al. (2009) | H28: Sodium hydroxide, without water | J28: 1.079309719 | K28: 2, 4, 3, 2, 2
A29: Technosphere | B29: Processing input | C29: Sulfuric acid | D29: kg | E29: =18*0.001 -> 0.018 | F29: 5.646074635e-05 | G29: Moing et al. (2009) | H29: Sulfuric acid | J29: 1.079309719 | K29: 2, 4, 3, 2, 2
A30: Technosphere | B30: Processing input | C30: Water | D30: kg | E30: 16 | F30: 0.05018733009 | G30: Moing et al. (2009) | H30: Water, deionised, from tap water, at user | J30: 1.079309719 | K30: 2, 4, 3, 2, 2
A31: Technosphere | B31: Liquid waste | C31: Wastewater | D31: m3 | E31: =16/1000 -> 0.016 | F31: 5.018733009e-05 | G31: Calculated | H31: Wastewater, average | J31: 1.079309719 | K31: 2, 4, 3, 2, 2
A32: Within system boundary | B32: Internal flow | C32: Power terminals, cleaned for plating | D32: m² | E32: 1 | F32: ='11-Surface and mass calculation'!F27 -> 0.003136708131
A34: Electroplating nickel on copper and brass parts | D34: Flows scaling to: kg of nickel
A35: Dispatching / receiving system | B35: Flow description | C35: Flow name | D35: Property and quantity | G35: Reference source | H35: Linked flow / Representation in Ecoinvent 3 | I35: Notes/hypothesis | J35: Uncertainty assessment
D36: Unit | E36: Amount per m² | F36: Scaled amount | J36: GSD | K36: Comment
A37: Technosphere | B37: Product material input | C37: Nickel | D37: kg | E37: =1053*0.001 -> 1.053 | F37: =E37*F$41 -> 4.409443138e-05 | G37: Calculated from bath efficiency | H37: Nickel, 99.5% | J37: 1.079309719 | K37: 2, 4, 3, 2, 2
A38: Technosphere | B38: Energy input | C38: Electricity | D38: kWh | E38: 4.8 | F38: 0.000201000257 | G38: Modified from Moing et al. (2009) | H38: Electricity, optional | J38: 1.079309719 | K38: 2, 4, 3, 2, 2
A39: Natural environment | B39: Emission to air | C39: Nickel | D39: kg | E39: =42*0.000001 -> 4.2e-05 | F39: 1.758752249e-09 | G39: Moing et al. (2009) | H39: Nickel, unspecified | I39: AA | J39: 2.246693762 | K39: 2, 4, 3, 2, 2
A40: Technosphere | B40: Solid waste | C40: Sludge, dry content | D40: kg | E40: =53*0.001 -> 0.053 | F40: 2.219377838e-06 | G40: Calculated | H40: Hazardous waste, optional | J40: 1.079309719 | K40: 2, 4, 3, 2, 2
A41: Within unit process | B41: Internal flow | C41: Nickel, in plated layer | D41: kg | E41: 1 | F41: ='11-Surface and mass calculation'!F28/1000 -> 4.187505354e-05 | H41: Internal flow
D43: Flows scaling to: m² of plated area
A44: Dispatching / receiving system | B44: Flow description | C44: Flow name | D44: Property and quantity | G44: Reference source | H44: Linked flow / Representation in Ecoinvent 3 | I44: Notes/hypothesis | J44: Uncertainty assessment
D45: Unit | E45: Amount per m² | F45: Scaled amount | J45: GSD | K45: Comment
A46: Within unit process | B46: Internal flow | C46: Nickel, in plated layers | D46: m² | E46: 1 | F46: =F41 -> 4.187505354e-05 | G46: Reference units, see model report. | H46: Internal flow
A47: Within system boundary | B47: Internal flow | C47: Power terminals, cleaned for plating | D47: m² | E47: 1 | F47: =F32 -> 0.003136708131 | G47: Reference units, see model report. | H47: Internal flow
A48: Technosphere | B48: Processing input | C48: Water | D48: kg | E48: 8 | F48: =E48*F$51 -> 0.02509366504 | G48: Moing et al. (2009) | H48: Water, deionised, from tap water, at user | J48: 1.079309719 | K48: 2, 4, 3, 2, 2
A49: Natural environment | B49: Emission to water | C49: Nickel, in sulfamate | D49: kg | E49: =0.4*0.000001 -> 4e-07 | F49: 1.254683252e-09 | G49: Moing et al. (2009) | H49: Nickel, ion | J49: 2.246693762 | K49: 2, 4, 3, 2, 2
A50: Technosphere | B50: Liquid waste | C50: Wastewater | D50: m³ | E50: =8*0.001 -> 0.008 | F50: 2.509366504e-05 | G50: Calculated | H50: Wastewater, average | J50: 1.079309719 | K50: 2, 4, 3, 2, 2
A51: Within system boundary | B51: Internal flow | C51: Power terminals, nickel plated | D51: m² | E51: 1 | F51: =F47 -> 0.003136708131

Sheet 07-Frame and lid
A1: Manufacturing of frame and lid
A2: Description : | B2: This sheet presents the processes required for the production of the frame and lid. A mixture of plastic and additives is made and used later for the injection molding step. The final product is illustrated by the picture below this textbox. The tables below are adapted from Nordelof et Al. (2019). Each of them represent a step of the production stage of the present component. A description of the flow, its property, quantity, reference source, link to EcoInvent 3 and the uncertainty assessment is given. The colored legend is also explained below.
E8: Illustration :
A9: Legend : | C9: Inflows
C10: Outflows
A15: Frame and lid
A16: Dispatching / receiving system | B16: Flow description | C16: Flow name | D16: Property and quantity | G16: Reference source | H16: Linked flow / Representation in Ecoinvent 3 | I16: Notes/hypothesis | J16: Uncertainty assessment
D17: Unit | E17: Amount per kg | F17: Scaled amount | J17: GSD | K17: Comment
A18: Technosphere | B18: Product material input | C18: Polyphenylene sulfide, powder | D18: kg | E18: 1 | F18: ='11-Surface and mass calculation'!F22/1000 -> 0.041696692 | G18: Reference units, see model report. | H18: Polyphenylene sulfide
A19: Technosphere | B19: Product material input | C19: Diantimony trioxide | D19: kg | E19: 1 | F19: ='11-Surface and mass calculation'!F23/1000 -> 0.002146153265 | G19: Reference units, see model report. | H19: Antimony
A20: Technosphere | B20: Product material input | C20: Glass fiber | D20: kg | E20: 1 | F20: ='11-Surface and mass calculation'!F24/1000 -> 0.01747581944 | G20: Reference units, see model report. | H20: Glas fibre
A21: Extended system | B21: Internal flow | C21: Molding mixture (for frame and lid) | D21: kg | E21: 1 | F21: =Tableau10[[#This Row],[Values]]/1000 -> 0.0613186647 | H21: Internal flow
A23: Injection molding of lid, frame and gland inserts
A24: Dispatching / receiving system | B24: Flow description | C24: Flow name | D24: Property and quantity | G24: Reference source | H24: Linked flow / Representation in Ecoinvent 3 | I24: Notes/hypothesis | J24: Uncertainty assessment
D25: Unit | E25: Amount per kg | F25: Scaled amount | J25: GSD | K25: Comment
A26: Within system boundary | B26: Internal flow | C26: Molded frame and lid | D26: kg | E26: =1/0.994 -> 1.006036217 | F26: =F21 -> 0.0613186647 | G26: Hischier (2007) | H26: Injection moulding

Sheet 08-Wire bonds
A1: Manufacturing of wire bonds
A2: Description : | B2: This sheet presents the processes required for the production of the wire bonds. The main process is wire drawing of copper. The final product is illustrated by the picture below this textbox. The tables below are adapted from Nordelof et Al. (2019). Each of them represent a step of the production stage of the present component. A description of the flow, its property, quantity, reference source, link to EcoInvent 3 and the uncertainty assessment is given. The colored legend is also explained below. explained below.
E8: Illustration :
A9: Legend : | C9: Inflows
C10: Outflows
A15: Production of copper wire
A16: Dispatching / receiving system | B16: Flow description | C16: Flow name | D16: Property and quantity | G16: Reference source | H16: Linked flow / Representation in Ecoinvent 3 | I16: Notes/hypothesis | J16: Uncertainty assessment
D17: Unit | E17: Amount per kg | F17: Scaled amount | J17: GSD | K17: Comment
A18: Technosphere | B18: Product material input | C18: Copper, slab, for wire drawing | D18: kg | E18: 1 | F18: =E18*F$20 -> 0.0002647909111 | G18: Reference units, see model report. | H18: Copper | K18: A checker
A19: Technosphere | B19: Process input | C19: Drawing of copper wire | D19: kg | E19: 1 | F19: 0.0002647909111 | G19: Classen et al. (2009) | H19: Wire drawing, copper
A20: Within system boundary | B20: Internal flow | C20: Copper wire | D20: kg | E20: 1 | F20: =Tableau11[Value]/1000 -> 0.0002647909111 | H20: Internal flow

Sheet 09-Screws_washers
A1: Manufacturing of screws and washers
A2: Description : | B2: This sheet presents the processes required for the production of the screws and washers. The obtention process starts with the step of production of the steel parts through the process of hot rolling. Then, the parts are cleaned for electrogalvanisation. The final product is illustrated by the picture below this textbox. The tables below are adapted from Nordelof et Al. (2019). Each of them represent a step of the production stage of the present component. A description of the flow, its property, quantity, reference source, link to EcoInvent 3 and the uncertainty assessment is given. The colored legend is also explained below.
E8: Illustration :
A9: Legend : | C9: Inflows
C10: Outflows
C12: 2 faces sont galvanisés pour chacun des 2
A15: Production of steel parts
A16: Dispatching / receiving system | B16: Flow description | C16: Flow name | D16: Property and quantity | G16: Reference source | H16: Linked flow / Representation in Ecoinvent 3 | I16: Notes/hypothesis | J16: Uncertainty assessment
D17: Unit | E17: Amount per kg | F17: Scaled amount | J17: GSD | K17: Comment
A18: Technosphere | B18: Product material input | C18: Low-alloy carbon steel, ingot | D18: kg | E18: 1 | F18: =F$22 -> 0.008904938027 | G18: Reference units, see model report. | H18: Steel, low-alloyed | J18: 1.063799129 | K18: 2, 4, 1, 2, 2
A19: Technosphere | B19: Process input | C19: Hot rolling of low-alloy carbon steel | D19: kg | E19: 1 | F19: 0.008904938027 | G19: Classen et al. (2009) | H19: Hot rolling
A20: Technosphere | B20: Process input | C20: Section bar rolling of steel coil | D20: kg | E20: 1 | F20: 0.008904938027 | G20: Classen et al. (2009) | H20: Section bar rolling, steel
A21: Technosphere | B21: Process input | C21: Average machine working of steel | D21: kg | E21: 1 | F21: 0.008904938027 | G21: Steiner and Frischknecht (2007) | H21: Metal working, average for steel product manufacturing
A22: Within system boundary | B22: Internal flow | C22: Steel screws and washers (not plated) | D22: kg | E22: 1 | F22: ='11-Surface and mass calculation'!B30/1000 -> 0.008904938027 | H22: Internal flow
A24: Cleaning of metal surfaces before electroplating
A25: Dispatching / receiving system | B25: Flow description | C25: Flow name | D25: Property and quantity | G25: Reference source | H25: Linked flow / Representation in Ecoinvent 3 | I25: Notes/hypothesis | J25: Uncertainty assessment
D26: Unit | E26: Amount per kg | F26: Scaled amount | J26: GSD | K26: Comment
A27: Extended system | B27: Unaltered sub-component input | C27: Power terminals (not plated) | D27: m² | E27: 1 | F27: =F33 -> 0.0005470141128
A28: Technosphere | B28: Energy input | C28: Electricity | D28: kWh | E28: 0.42 | F28: =E28*F$33 -> 0.0002297459274 | G28: Moing et al. (2009) | H28: Electricity, optional | J28: 1.079309719 | K28: 2, 4, 3, 2, 2
A29: Technosphere | B29: Processing input | C29: Caustic soda | D29: kg | E29: =10*0.001 -> 0.01 | F29: 5.470141128e-06 | G29: Moing et al. (2009) | H29: Sodium hydroxide, without water | J29: 1.079309719 | K29: 2, 4, 3, 2, 2
A30: Technosphere | B30: Processing input | C30: Sulfuric acid | D30: kg | E30: =18*0.001 -> 0.018 | F30: 9.846254031e-06 | G30: Moing et al. (2009) | H30: Sulfuric acid | J30: 1.079309719 | K30: 2, 4, 3, 2, 2
A31: Technosphere | B31: Processing input | C31: Water | D31: kg | E31: 16 | F31: 0.008752225805 | G31: Moing et al. (2009) | H31: Water, deionised, from tap water, at user | J31: 1.079309719 | K31: 2, 4, 3, 2, 2
A32: Technosphere | B32: Liquid waste | C32: Wastewater | D32: m3 | E32: 16 | F32: 0.008752225805 | G32: Calculated | H32: Wastewater, average | J32: 1.079309719 | K32: 2, 4, 3, 2, 2
A33: Within system boundary | B33: Internal flow | C33: Screws and washers, cleaned for plating | D33: m² | E33: 1 | F33: ='11-Surface and mass calculation'!B27 -> 0.0005470141128
A35: Electro-galvanizing (zinc plating) of steel parts | D35: Flows scaling to: kg of zinc
A36: Dispatching / receiving system | B36: Flow description | C36: Flow name | D36: Property and quantity | G36: Reference source | H36: Linked flow / Representation in Ecoinvent 3 | I36: Notes/hypothesis | J36: Uncertainty assessment
D37: Unit | E37: Amount per m² | F37: Scaled amount | J37: GSD | K37: Comment
A38: Technosphere | B38: Product material input | C38: Zinc | D38: kg | E38: 1.053 | F38: =E38*F$41 -> 8.640087912e-09 | G38: Calculated from bath efficiency | H38: Zinc | J38: 1.1219 | K38: 2, 4, 3, 2, 3
A39: Technosphere | B39: Energy input | C39: Electricity | D39: kWh | E39: 4.3 | F39: 3.528241028e-08 | G39: Calculated, see model report | H39: Electricity, optional | J39: 1.1219 | K39: 2, 4, 3, 2, 3
A40: Technosphere | B40: Solid waste | C40: Sludge, dry content | D40: kg | E40: 0.053 | F40: 4.348762197e-10 | G40: Calculated | H40: Hazardous waste, optional | I40: AA | J40: 1.1219 | K40: 2, 4, 3, 2, 3
A41: Within unit process | B41: Internal flow | C41: Galvanization layer | D41: kg | E41: 1 | F41: ='11-Surface and mass calculation'!I30/1000 -> 8.205211693e-09 | H41: Internal flow
D43: Flows scaling to: m² of galvanized area
A44: Dispatching / receiving system | B44: Flow description | C44: Flow name | D44: Property and quantity | G44: Reference source | H44: Linked flow / Representation in Ecoinvent 3 | I44: Notes/hypothesis | J44: Uncertainty assessment
D45: Unit | E45: Amount per m² | F45: Scaled amount | J45: GSD | K45: Comment
A46: Within unit process | B46: Internal flow | C46: Galvanization layer | D46: m² | E46: 1 | F46: =F41 -> 8.205211693e-09 | G46: Reference units, see model report. | H46: Internal flow
A47: Within system boundary | B47: Sub-component input | C47: Cleaned terminals, screws and washers | D47: m² | E47: 1 | F47: =F33 -> 0.0005470141128 | G47: Reference units, see model report. | H47: Internal flow | J47: 1.121873438 | K47: 2, 4, 3, 2, 3
A48: Technosphere | B48: Processing input | C48: Water | D48: kg | E48: 8 | F48: =E48*F$51 -> 0.004376112903 | G48: Moing et al. (2009) | H48: Water, deionised, from tap water, at user | J48: 1.121873438 | K48: 2, 4, 3, 2, 3
A49: Natural environment | B49: Emission to water | C49: Zinc | D49: kg | E49: 4e-07 | F49: 2.188056451e-10 | G49: Schlesinger and Paunovic (2010) | H49: Zinc, ion | J49: 2.256957829 | K49: 2, 4, 3, 2, 3
A50: Technosphere | B50: Liquid waste | C50: Wastewater | D50: m³ | E50: 0.008 | F50: 4.376112903e-06 | G50: Calculated | H50: Wastewater, average | J50: 1.121873438 | K50: 2, 4, 3, 2, 3
A51: Within system boundary | B51: Internal flow | C51: Galvanized terminals, screws and washers | D51: m² | E51: 1 | F51: =F47 -> 0.0005470141128 | H51: Internal flow

Sheet 10-Assembly
A1: Assembly of power module
A2: Description : | B2: This sheet presents the processes required for the assembly of all the parts of the power module. The DBC and baseplate go through vacuum cleaning process before their soldering together and also after soldering. The plastic frame is insatalled folowed by wiring steps and deposit of the terminals. There is the deposit of silicone gel before closing with the plastic lid The final product is illustrated by the picture below this textbox. The tables below are adapted from Nordelof et Al. (2019). Each of them represent a step of the production stage of the present component. A description of the flow, its property, quantity, reference source, link to EcoInvent 3 and the uncertainty assessment is given. The colored legend is also explained below.
E8: Illustration :
A9: Legend : | C9: Inflows
C10: Outflows
A15: Pre-solder cleaning, including vacuum baking (Baseplate) | E15: Flows scaling to: m² of DCB or baseplate (area on one side – not total surface area)
A16: Dispatching / receiving system | B16: Flow description | C16: Flow name | D16: Property and quantity | G16: Reference source | H16: Linked flow / Representation in Ecoinvent 3 | I16: Notes/hypothesis | J16: Uncertainty assessment
D17: Unit | E17: Amount per kg | F17: Scaled amount | J17: GSD | K17: Comment
A18: Within system boundary | B18: Unaltered sub-component input | C18: Baseplate, nickel plated | D18: m² | E18: 1 | F18: ='11-Surface and mass calculation'!F11 -> 0.01167292109 | G18: Reference units, see model report. | H18: Internal flow
A19: Technosphere | B19: Energy input | C19: Electricity, furnace | D19: kWh | E19: 31 | F19: =E19*F$24 -> 0.1809302769 | G19: Est. from Franz and Weilguni (2011) | H19: Electricity, optional | J19: 1.105308987 | K19: 2, 3, 2, 2, 3
A20: Technosphere | B20: Energy input | C20: Electricity, ventilation | D20: kWh | E20: 14 | F20: 0.08171044764 | G20: Adapted from Aros data, see 5.1.3. | H20: Electricity, optional | J20: 1.105308987 | K20: 2, 3, 2, 2, 3
A21: Technosphere | B21: Process input | C21: Deionized water | D21: kg | E21: 0.09 | F21: 0.0005252814491 | G21: Ning et al. (2003), TM (2010) | H21: Water, deionised, from tap water, at user | J21: 1.234558079 | K21: 2, 3, 3, 4, 4
A22: Technosphere | B22: Process input | C22: Isopropanol | D22: kg | E22: 0.11 | F22: 0.0006420106601 | G22: Ning et al. (2003), TM (2010) | H22: Isopropanol | J22: 1.234558079 | K22: 2, 3, 3, 4, 4
A23: Technosphere | B23: Liquid waste | C23: Waste solvents, conc. share of dilution | D23: kg | E23: 0.11 | F23: 0.0006420106601 | G23: Calculated | H23: Spent solvent mixture | J23: 1.234558079 | K23: 2, 3, 3, 4, 4
A24: Within unit process | B24: Internal flow | C24: Baseplate, cleaned and baked | D24: m² | E24: 1 | F24: ='11-Surface and mass calculation'!F9 -> 0.005836460546 | H24: Internal flow
A26: Soldering of the power module - vacuum VPS diffusion soldering for chip attachment and reflow system soldering (Baseplate)
A27: Stencil printing and cleaning of stencils - flows scaling to: m² of DCB or baseplate (area on one side – not total surface area)
A28: Dispatching / receiving system | B28: Flow description | C28: Flow name | D28: Property and quantity | G28: Reference source | H28: Linked flow / Representation in Ecoinvent 3 | I28: Notes/hypothesis | J28: Uncertainty assessment
D29: Unit | E29: Amount per kg | F29: Scaled amount | J29: GSD | K29: Comment
A30: Within system boundary | B30: Sub-component input | C30: Baseplate, cleaned and baked | D30: m² | E30: 1 | F30: =F24 -> 0.005836460546 | G30: Reference units, see model report. | H30: Internal flow | J30: 1.038470723 | K30: 1, 3, 2, 2, 1
A31: Technosphere | B31: Energy input | C31: Electricity | D31: kWh | E31: 2.1 | F31: =E31*F$36 -> 0.01225656715 | G31: Aros plant data, see model report. | H31: Electricity, optional | J31: 1.105308987 | K31: 2, 3, 2, 2, 3
A32: Technosphere | B32: Process input | C32: Cleaning liquid, alkoxypropanol | D32: kg | E32: 0.065 | F32: 0.0003793699355 | G32: Aros plant data, see model report. | H32: Dipropylene glycol monomethyl ether | J32: 1.105308987 | K32: 2, 3, 2, 2, 3
A33: Technosphere | B33: Process input | C33: Cleaning liquid, amino alcohol | D33: kg | E33: 0.01 | F33: 5.836460546e-05 | G33: Aros plant data, see model report. | H33: Monoethanolamine | J33: 1.105308987 | K33: 2, 3, 2, 2, 3
A34: Technosphere | B34: Process input | C34: Cleaning liquid, deionized water | D34: kg | E34: 0.32 | F34: 0.001867667375 | G34: Aros plant data, see model report. | H34: Water, deionised, from tap water, at user | J34: 1.105308987 | K34: 2, 3, 2, 2, 3
A35: Technosphere | B35: Liquid waste | C35: Disposed cleaning liquid, conc. share | D35: kg | E35: 0.075 | F35: 0.0004377345409 | G35: Aros plant data, see model report. | H35: Spent solvent mixture | J35: 1.105308987 | K35: 2, 3, 2, 2, 3
A36: Within unit process | B36: Internal flow | C36: Baseplate, to furnace | D36: m² | E36: 1 | F36: =F30 -> 0.005836460546 | H36: Internal flow
A38: Soldering of the power module - vacuum VPS diffusion soldering for chip attachment and reflow system soldering (DCB)
A39: Stencil printing and cleaning of stencils - flows scaling to: m² of DCB or baseplate (area on one side – not total surface area)
A40: Dispatching / receiving system | B40: Flow description | C40: Flow name | D40: Property and quantity | G40: Reference source | H40: Linked flow / Representation in Ecoinvent 3 | I40: Notes/hypothesis | J40: Uncertainty assessment
D41: Unit | E41: Amount per kg | F41: Scaled amount | J41: GSD | K41: Comment
A42: Within system boundary | B42: Sub-component input | C42: DCB substrate, cleaned and baked | D42: m² | E42: 1 | F42: ='11-Surface and mass calculation'!B12 -> 0.00640013974 | G42: Reference units, see model report. | H42: Internal flow | J42: 1.038470723 | K42: 1, 3, 2, 2, 1
A43: Technosphere | B43: Energy input | C43: Electricity | D43: kWh | E43: 2.1 | F43: =E43*F$48 -> 0.01344029345 | G43: Aros plant data, see model report. | H43: Electricity, optional | J43: 1.105308987 | K43: 2, 3, 2, 2, 3
A44: Technosphere | B44: Process input | C44: Cleaning liquid, alkoxypropanol | D44: kg | E44: 0.065 | F44: 0.0004160090831 | G44: Aros plant data, see model report. | H44: Dipropylene glycol monomethyl ether | J44: 1.105308987 | K44: 2, 3, 2, 2, 3
A45: Technosphere | B45: Process input | C45: Cleaning liquid, amino alcohol | D45: kg | E45: 0.01 | F45: 6.40013974e-05 | G45: Aros plant data, see model report. | H45: Monoethanolamine | J45: 1.105308987 | K45: 2, 3, 2, 2, 3
A46: Technosphere | B46: Process input | C46: Cleaning liquid, deionized water | D46: kg | E46: 0.32 | F46: 0.002048044717 | G46: Aros plant data, see model report. | H46: Water, deionised, from tap water, at user | J46: 1.105308987 | K46: 2, 3, 2, 2, 3
A47: Technosphere | B47: Liquid waste | C47: Disposed cleaning liquid, conc. share | D47: kg | E47: 0.075 | F47: 0.0004800104805 | G47: Aros plant data, see model report. | H47: Spent solvent mixture | J47: 1.105308987 | K47: 2, 3, 2, 2, 3
A48: Within unit process | B48: Internal flow | C48: DCB substrate, to furnace | D48: m² | E48: 1 | F48: =F42 -> 0.00640013974 | H48: Internal flow
A50: Stencil printing and soldering (both steps) - flows scaling to: kg of lead-free solder in the power module
A51: Dispatching / receiving system | B51: Flow description | C51: Flow name | D51: Property and quantity | G51: Reference source | H51: Linked flow / Representation in Ecoinvent 3 | I51: Notes/hypothesis | J51: Uncertainty assessment
D52: Unit | E52: Amount per kg | F52: Scaled amount | J52: GSD | K52: Comment
A53: Technosphere | B53: Product material input | C53: Solder paste | D53: kg | E53: 1.25 | F53: =E53*F$58 -> 0.003943858265 | G53: See below, as for emissions and waste | H53: Solder, paste, Sn95.5Ag3.9Cu0.6 | J53: 1.038470723 | K53: 1, 3, 2, 2, 1
A54: Natural environment | B54: Emission to air | C54: Ethanol | D54: kg | E54: 0.037 | F54: 0.0001167382046 | G54: Aros plant data, reworked and re-calculated, see model report. | H54: Ethanol | J54: 1.416885144 | K54: 2, 3, 2, 2, 1
A55: Natural environment | B55: Emission to air | C55: VOC | D55: kg | E55: 0.087 | F55: 0.0002744925352 | G55: Aros plant data, reworked and re-calculated, see model report. | H55: NMVOC | J55: 1.225723552 | K55: 2, 3, 2, 2, 1
A56: Technosphere | B56: Solid waste | C56: Filter waste | D56: kg | E56: 0.068 | F56: 0.0002145458896 | G56: Aros plant data, reworked and re-calculated, see model report. | H56: Hazardous waste, for incineration | J56: 1.04602786 | K56: 2, 3, 2, 2, 1
A57: Technosphere | B57: Solid waste | C57: Solder paste waste | D57: kg | E57: 0.056 | F57: 0.0001766848503 | G57: Aros plant data, reworked and re-calculated, see model report. | H57: Solder waste, optional recycling | J57: 1.04602786 | K57: 2, 3, 2, 2, 1
A58: Within system boundary | B58: Internal flow | C58: Solder in power module | D58: kg | E58: 1 | F58: ='11-Surface and mass calculation'!I28/1000 -> 0.003155086612 | H58: Internal flow
A60: Soldering (vacuum VPS diffusion soldering for chip attachment) - flows scaling to: m² of DCB (area on one side – not total surface area)
A61: Dispatching / receiving system | B61: Flow description | C61: Flow name | D61: Property and quantity | G61: Reference source | H61: Linked flow / Representation in Ecoinvent 3 | I61: Notes/hypothesis | J61: Uncertainty assessment
D62: Unit | E62: Amount per kg | F62: Scaled amount | J62: GSD | K62: Comment
A63: Within unit process | B63: Internal flow | C63: DCB substrate, to furnace | D63: m² | E63: 1 | F63: =F42 -> 0.00640013974 | G63: Reference units, see model report. | H63: Internal flow
A64: Within system boundary | B64: Sub-component input | C64: Diced IGBT chips | D64: m² | E64: =F64/F66 -> 0.1161227234 | F64: ='11-Surface and mass calculation'!F32 -> 0.0007432016567 | G64: Reference units, see model report. | H64: Internal flow | J64: 1.038470723 | K64: 1, 3, 2, 2, 1
A65: Technosphere | B65: Energy input | C65: Electricity | D65: kWh | E65: 24 | F65: =F66*E65 -> 0.1536033538 | G65: See model report. | H65: Electricity, optional | J65: 1.227525065 | K65: 2, 3, 2, 2, 4
A66: Within unit process | B66: Internal flow | C66: DCB, with IGBT chips attached | D66: m² | E66: 1 | F66: =F63 -> 0.00640013974 | H66: Internal flow
A68: Soldering (system soldering to unify the DCB and the baseplate) - flows scaling to: m² of baseplate (area on one side – not total surface area)
A69: Dispatching / receiving system | B69: Flow description | C69: Flow name | D69: Property and quantity | G69: Reference source | H69: Linked flow / Representation in Ecoinvent 3 | I69: Notes/hypothesis | J69: Uncertainty assessment
D70: Unit | E70: Amount per kg | F70: Scaled amount | J70: GSD | K70: Comment
A71: Within unit process | B71: Internal flow | C71: DCB, with IGBT chips attached | D71: m² | E71: =F71/F75 -> 1.096578944 | F71: =F66 -> 0.00640013974 | G71: Reference units, see model report. | H71: Internal flow
A72: Within unit process | B72: Internal flow | C72: Baseplate, to furnace | D72: m² | E72: 1 | F72: =F36 -> 0.005836460546 | G72: Reference units, see model report. | H72: Internal flow
A73: Technosphere | B73: Energy input | C73: Electricity | D73: kWh | E73: 24 | F73: =E73*F$75 -> 0.1400750531 | G73: Aros plant data, reworked and re-calculated, see model report. | H73: Electricity, optional | J73: 1.105308987 | K73: 2, 3, 2, 2, 3
A74: Technosphere | B74: Process input | C74: Nitrogen | D74: kg | E74: 64 | F74: 0.3735334749 | H74: Nitrogen, liquid | J74: 1.105308987 | K74: 2, 3, 2, 2, 3
A75: Within system boundary | B75: Internal flow | C75: Baseplate module w/o frame | D75: m² | E75: 1 | F75: =F72 -> 0.005836460546 | H75: Internal flow
A77: Post-solder solvent cleaning
A78: Flows scaling to: m² of baseplate (area on one side – not total surface area)
A79: Dispatching / receiving system | B79: Flow description | C79: Flow name | D79: Property and quantity | G79: Reference source | H79: Linked flow / Representation in Ecoinvent 3 | I79: Notes/hypothesis | J79: Uncertainty assessment
D80: Unit | E80: Amount per kg | F80: Scaled amount | J80: GSD | K80: Comment
A81: Within system boundary | B81: Unaltered sub-component input | C81: Baseplate module w/o frame | D81: m² | E81: 1 | F81: =F75 -> 0.005836460546 | G81: Reference units, see model report. | H81: Internal flow
A82: Technosphere | B82: Process input | C82: Acetone | D82: kg | E82: 0.09 | F82: =E82*F$85 -> 0.0005252814491 | G82: Ning et al. (2003), TM (2010) | H82: Acetone, liquid | J82: 1.234558079 | K82: 2, 3, 3, 4, 4
A83: Technosphere | B83: Process input | C83: Isopropanol | D83: kg | E83: 0.09 | F83: 0.0005252814491 | G83: Ning et al. (2003), TM (2010) | H83: Isopropanol | J83: 1.234558079 | K83: 2, 3, 3, 4, 4
A84: Technosphere | B84: Liquid waste | C84: Waste solvents, conc. share of dilution | D84: kg | E84: 0.11 | F84: 0.0006420106601 | G84: Calculated | H84: Spent solvent mixture | J84: 1.234558079 | K84: 2, 3, 3, 4, 4
A85: Within system boundary | B85: Internal flow | C85: Baseplate module w/o frame, cleaned | D85: m² | E85: 1 | F85: =F75 -> 0.005836460546 | H85: Internal flow
A87: Attachment of plastic frame
A88: Dispatching / receiving system | B88: Flow description | C88: Flow name | D88: Property and quantity | G88: Reference source | H88: Linked flow / Representation in Ecoinvent 3 | I88: Notes/hypothesis | J88: Uncertainty assessment
D89: Unit | E89: Amount per kg | F89: Scaled amount | J89: GSD | K89: Comment
A90: Within system boundary | B90: Unaltered sub-component input | C90: Baseplate module w/o frame, cleaned | D90: pce | E90: 1 | F90: 1 | G90: Reference units, see model report. | H90: Internal flow
A91: Within system boundary | B91: Unaltered sub-component input | C91: Galvanized terminals, screws and washers | D91: kg | E91: =F91 -> 0.008904938027 | F91: ='11-Surface and mass calculation'!B30/1000 -> 0.008904938027 | G91: Reference units, see model report. | H91: Internal flow
A92: Within system boundary | B92: Unaltered sub-component input | C92: Frame with bonded terminals | D92: pce | E92: 1 | F92: 1 | G92: Reference units, see model report. | H92: Internal flow
A93: Technosphere | B93: Product material input | C93: Silicone adhesive | D93: kg | E93: =F93 -> 0.00021 | F93: ='11-Surface and mass calculation'!I32/1000/2 -> 0.00021 | G93: Reference units, see model report. | H93: Silicone product | J93: 1.038470723 | K93: 1, 3, 2, 2, 1
A94: Within system boundary | B94: Internal flow | C94: Baseplate module with frame | D94: pce | E94: 1 | F94: 1 | H94: Internal flow
A96: Plasma cleaning
A97: Dispatching / receiving system | B97: Flow description | C97: Flow name | D97: Property and quantity | G97: Reference source | H97: Linked flow / Representation in Ecoinvent 3 | I97: Notes/hypothesis | J97: Uncertainty assessment
D98: Unit | E98: Amount per kg | F98: Scaled amount | J98: GSD | K98: Comment
A99: Within system boundary | B99: Unaltered sub-component input | C99: Baseplate module with frame | D99: pce | E99: 1 | F99: 1 | G99: Reference units, see model report. | H99: Internal flow
A100: Technosphere | B100: Energy input | C100: Electricity | D100: kWh | E100: 0.05 | F100: 0.05 | G100: See model report. | H100: Electricity, optional | J100: 1.07643494 | K100: 3, 4, 2, 2, 2
A101: Within system boundary | B101: Internal flow | C101: Baseplate module with frame, cleaned | D101: pce | E101: 1 | F101: 1 | H101: Internal flow
A103: Ultrasonic bonding of wires and terminals
A104: Flows scaling to: cm² of IGBT chip area
A105: Dispatching / receiving system | B105: Flow description | C105: Flow name | D105: Property and quantity | G105: Reference source | H105: Linked flow / Representation in Ecoinvent 3 | I105: Notes/hypothesis | J105: Uncertainty assessment
D106: Unit | E106: Amount per kg | F106: Scaled amount | J106: GSD | K106: Comment
A107: Within system boundary | B107: Unaltered sub-component input | C107: Baseplate module with frame, cleaned | D107: pce | F107: 1 | G107: Reference units, see model report. | H107: Internal flow
A108: Within system boundary | B108: Unaltered sub-component input | C108: Copper wire | D108: kg | E108: =F108/F110 -> 0.35628407 | F108: =Tableau11[Value]/1000 -> 0.0002647909111 | G108: Reference units, see model report. | H108: Internal flow
A109: Technosphere | B109: Energy input | C109: Electricity for ultrasonic welding | D109: kWh | E109: 0.02 | F109: =E109*F110 -> 1.486403313e-05 | G109: Levine (2000, 2016), Orthodyne (2012) | H109: Electricity, optional | J109: 1.07643494 | K109: 3, 4, 2, 2, 2
A110: Within system boundary | B110: Internal flow | C110: Power module, open, wire bonded | D110: m² | E110: 1 | F110: ='11-Surface and mass calculation'!F32 -> 0.0007432016567 | H110: Internal flow
A112: Potting and curing with UV light
A113: Flows scaling to: kg of potting gel
A114: Dispatching / receiving system | B114: Flow description | C114: Flow name | D114: Property and quantity | G114: Reference source | H114: Linked flow / Representation in Ecoinvent 3 | I114: Notes/hypothesis | J114: Uncertainty assessment
D115: Unit | E115: Amount per kg | F115: Scaled amount | J115: GSD | K115: Comment
A116: Technosphere | B116: Product material input | C116: Silicone potting gel | D116: kg | E116: 1 | F116: ='11-Surface and mass calculation'!I33/1000 -> 0.03115563752 | G116: See model report. | H116: Silicone product | J116: 1.038470723 | K116: 1, 3, 2, 2, 1
A117: Technosphere | B117: Energy input | C117: Electricity for dispensing gel | D117: kWh | E117: 0.3 | F117: =E117*F118 -> 0.009346691256 | G117: MTA (2014), Wacker (2014) | H117: Electricity, optional | J117: 1.065498631 | K117: 3, 3, 2, 2, 2
A118: Within unit process | B118: Internal flow | C118: Potting gel layer | D118: kg | E118: 1 | F118: =F116 -> 0.03115563752 | H118: Internal flow
A120: Fixed flows, presented per piece
A121: Dispatching / receiving system | B121: Flow description | C121: Flow name | D121: Property and quantity | G121: Reference source | H121: Linked flow / Representation in Ecoinvent 3 | I121: Notes/hypothesis | J121: Uncertainty assessment
D122: Unit | E122: Amount per kg | F122: Scaled amount | J122: GSD | K122: Comment
A123: Within unit process | B123: Internal flow | C123: Potting gel layer | D123: kg | E123: =F123 -> 0.03115563752 | F123: =F118 -> 0.03115563752 | G123: Reference units, see model report. | H123: Internal flow
A124: Within system boundary | B124: Unaltered sub-component input | C124: Power module, open, wire bonded | D124: pce | E124: 1 | F124: 1 | G124: Reference units, see model report. | H124: Internal flow
A125: Technosphere | B125: Energy input | C125: Electricity UV curing | D125: kWh | E125: 0.03 | F125: 0.03 | G125: See model report. | H125: Electricity, optional | J125: 1.079309719 | K125: 3, 3, 3, 2, 2
A126: Within system boundary | B126: Internal flow | C126: Power module, open, potted | D126: pce | E126: 1 | F126: 1 | H126: Internal flow
A128: Attachment of plastic lid
A129: Dispatching / receiving system | B129: Flow description | C129: Flow name | D129: Property and quantity | G129: Reference source | H129: Linked flow / Representation in Ecoinvent 3 | I129: Notes/hypothesis | J129: Uncertainty assessment
D130: Unit | E130: Amount per kg | F130: Scaled amount | J130: GSD | K130: Comment
A131: Within system boundary | B131: Unaltered sub-component input | C131: Power module, open, potted | D131: pce | E131: 1 | F131: 1 | G131: Reference units, see model report. | H131: Internal flow
A132: Within system boundary | B132: Unaltered sub-component input | C132: Lid | D132: pce | E132: 1 | F132: 1 | G132: Reference units, see model report. | H132: Internal flow
A133: Technosphere | B133: Product material input | C133: Silicone adhesive | D133: g | E133: =F133 -> 0.00021 | F133: ='11-Surface and mass calculation'!I32/1000/2 -> 0.00021 | G133: Reference units, see model report. | H133: Silicone product | J133: 1.038470723 | K133: 1, 3, 2, 2, 1
A134: Within system boundary | B134: Internal flow | C134: IGBT power module, complete | D134: pce | E134: 1 | F134: 1 | H134: Internal flow

Sheet Feuil3
A1: Data accessibility
A2: Datasheet
A3: Opening of module
A4: Non-opening of module
A5: Disassembly of module
A6: Hypothesis
